account_party,address,code,date,document_number,expense_code_name,expense_code_name_short,id,party_cell,party_cell_code,party_cell_geoobject,purpose,source_bank_account_number,source_bank_account_type,sum,target_legal_personality,target_legal_personality_code,target_type
Самопоміч,"Дніпропетровська обл., Дніпро́, вул. Челюскіна, буд. 12",70,2020-06-30,TR.2498580.670637.2667,Банківські послуги,Інші витрати,246049,Дніпровська міська організація,39959985,Дніпропетровська область,"Абонлата за розрахункове обслуговування по рахунку № 26003924419196.980 за період з 2020-06-01 по 2020-06-30 зг. Договору № 2016/РКО/175-183 від 2016-10-10, без ПДВ",UA273204780000026003924419196,current,60.00,"АБ ""Укргазбанк""",23697280,юридична особа
Самопоміч,"Київ, вул. Єреванська, буд. 1",70,2020-06-30,TR.1170985,Банківські послуги,Інші витрати,246031,Центральний офіс,38558365,Україна,"Абонлата за розрахункове обслуговування по рахунку № 26006924866928.980 за перiод з 2020-06-01 по 2020-06-30 зг. договору № 2019/КД/291-0048 від 2019-06-18 , без ПДВ",UA443204780000026006924866928,current,60.00,"АБ ""Укргазбанк""",23697280,юридична особа
Самопоміч,"Київ, вул. Єреванська, буд. 1",70,2020-06-22,TR.1170985_74,Банківські послуги,Інші витрати,246030,Центральний офіс,38558365,Україна,"Плата за розрахункове обслуговування по рахунку № 26006924866928.980 з 2020-06-22 по 2020-06-22 згідно Договору № 2019/КД/291-0048 від 2019-06-18 р, без ПДВ",UA443204780000026006924866928,current,0.80,"АБ ""Укргазбанк""",23697280,юридична особа
Самопоміч,"Київ, вул. Єреванська, буд. 1",70,2020-06-22,TR.1170985_73,Банківські послуги,Інші витрати,246029,Центральний офіс,38558365,Україна,"Плата за розрахункове обслуговування по рахунку № 26006924866928.980 з 2020-06-22 по 2020-06-22 згідно Договору № 2019/КД/291-0048 від 2019-06-18 р, без ПДВ",UA443204780000026006924866928,current,0.80,"АБ ""Укргазбанк""",23697280,юридична особа
Самопоміч,"Київ, вул. Єреванська, буд. 1",70,2020-06-22,TR.1170985,Банківські послуги,Інші витрати,246028,Центральний офіс,38558365,Україна,"Плата за розрахункове обслуговування по рахунку № 26006924866928.980 з 2020-06-22 по 2020-06-22 згідно Договору № 2019/КД/291-0048 від 2019-06-18 р, без ПДВ",UA443204780000026006924866928,current,0.80,"АБ ""Укргазбанк""",23697280,юридична особа
Самопоміч,"Київ, вул. Єреванська, буд. 1",70,2020-06-22,3441,Банківські послуги,Інші витрати,246027,Центральний офіс,38558365,Україна,Банківська комісія за виплату авансу працівника за червень 2020 р.,UA443204780000026006924866928,current,60.07,"АБ ""Укргазбанк""",23697280,юридична особа
Самопоміч,"Львівська обл., Львів, вул. Конотопська, буд. 6",63,2020-06-22,3442,Податок на доходи,Податкові платежі,246026,Центральний офіс,38558365,Україна,*;101;38558365; сплата ПДФО із авансу працівника за червень 2020 р.;;;11010100,UA443204780000026006924866928,current,2686.50,УДКСУ у Франківському районі м. Львова,37965138,юридична особа
Самопоміч,"Львівська обл., Львів, вул. Стрийська, буд. 35",62,2020-06-22,3439,Сплата ЄСВ,Податкові платежі,246025,Центральний офіс,38558365,Україна,*;101;38558365; сплата єдиного соціального внеску 22% із авансу працівника за червень 2020р .,UA443204780000026006924866928,current,3283.50,ГОЛОВНЕ УПРАВЛІННЯ ДФС У ЛЬВІВСЬКІЙ ОБЛАСТІ,43143039,юридична особа
Самопоміч,"Львівська обл., Львів, вул. Конотопська, буд. 6",61,2020-06-22,3438,Військовий збір,Податкові платежі,246024,Центральний офіс,38558365,Україна,*;101;38558365; сплата військового збору із авансу працівника за червень 2020 р.;;; 11011000,UA443204780000026006924866928,current,223.88,УДКСУ у Франківському районі м. Львова,37965138,юридична особа
Самопоміч,"Львівська обл., Львів",84,2020-06-22,3440,"Заробітна плата, премії","Заробітна плата, лікарняні, вагітності, відрядження, компенсації",245925,Центральний офіс,38558365,Україна,Зарплата,UA443204780000026006924866928,current,12014.62,Кокорузь Марія Михайлівна,,фізична особа
Самопоміч,"Київ, вул. Братиславська, буд. 14Б",79,2020-06-18,6,"Оренда будинків і приміщень та експлуатаційні витрати (прибирання, страхування орендованих будинків, охорона, сигналізація, ремонт, вивіз сміття, тощо)",Оренда нерухомості,246041,Барська районна організація,39919455,Вінницька область,"Оплата за оренду нежитлового приміщення згідно договору від 04-01/2020 від 2020-01-02р., без ПДВ.",UA453020760000026000171311565,current,1020.00,"ТОВ ""Вектор БМ""",42258575,юридична особа
Самопоміч,"Київ, вул. Єреванська, буд. 1",70,2020-06-15,TR.1170985_72,Банківські послуги,Інші витрати,246023,Центральний офіс,38558365,Україна,"Плата за розрахункове обслуговування по рахунку № 26006924866928.980 з 2020-06-15 по 2020-06-15 згідно Договору № 2019/КД/291-0048 від 2019-06-18 р, без ПДВ",UA443204780000026006924866928,current,0.80,"АБ ""Укргазбанк""",23697280,юридична особа
Самопоміч,"Київ, вул. Єреванська, буд. 1",70,2020-06-15,TR.1170985,Банківські послуги,Інші витрати,246022,Центральний офіс,38558365,Україна,"Плата за розрахункове обслуговування по рахунку № 26006924866928.980 з 2020-06-15 по 2020-06-15 згідно Договору № 2019/КД/291-0048 від 2019-06-18 р, без ПДВ",UA443204780000026006924866928,current,0.80,"АБ ""Укргазбанк""",23697280,юридична особа
Самопоміч,"Сумська обл., Конотоп, вул. Братів Лузанів, буд. 48",79,2020-06-15,3437,"Оренда будинків і приміщень та експлуатаційні витрати (прибирання, страхування орендованих будинків, охорона, сигналізація, ремонт, вивіз сміття, тощо)",Оренда нерухомості,246021,Центральний офіс,38558365,Україна,"Оплата за оренду нежитлового приміщення за травень 2020р., згідно акту наданих послуг від 2020-06-11 року",UA443204780000026006924866928,current,2070.10,Конотопське УДКСУв Сумській обл.,37784555,юридична особа
Самопоміч,"Сумська обл., Конотоп, вул. Братів Лузанів, буд. 48",60,2020-06-15,3436,Інші податки,Податкові платежі,246020,Центральний офіс,38558365,Україна,"Оплата за компенсацію податку на землю за травень 2020р., згідно акту наданих послуг від 01.06.20р.",UA443204780000026006924866928,current,150.65,Конотопське УДКСУв Сумській обл.,37784555,юридична особа
Самопоміч,"Київ, вул. Єреванська, буд. 1",70,2020-06-12,TR.1170985_71,Банківські послуги,Інші витрати,246019,Центральний офіс,38558365,Україна,"Плата за розрахункове обслуговування по рахунку № 26006924866928.980 з 2020-06-12 по 2020-06-12 згідно Договору № 2019/КД/291-0048 від 2019-06-18 р, без ПДВ",UA443204780000026006924866928,current,0.80,"АБ ""Укргазбанк""",23697280,юридична особа
Самопоміч,"Київ, вул. Єреванська, буд. 1",70,2020-06-12,TR.1170985_70,Банківські послуги,Інші витрати,246018,Центральний офіс,38558365,Україна,"Плата за розрахункове обслуговування по рахунку № 26006924866928.980 з 2020-06-12 по 2020-06-12 згідно Договору № 2019/КД/291-0048 від 2019-06-18 р, без ПДВ",UA443204780000026006924866928,current,0.80,"АБ ""Укргазбанк""",23697280,юридична особа
Самопоміч,"Київ, вул. Єреванська, буд. 1",70,2020-06-12,TR.1170985_69,Банківські послуги,Інші витрати,246017,Центральний офіс,38558365,Україна,"Плата за розрахункове обслуговування по рахунку № 26006924866928.980 з 2020-06-12 по 2020-06-12 згідно Договору № 2019/КД/291-0048 від 2019-06-18 р, без ПДВ",UA443204780000026006924866928,current,0.80,"АБ ""Укргазбанк""",23697280,юридична особа
Самопоміч,"Київ, вул. Єреванська, буд. 1",70,2020-06-12,TR.1170985,Банківські послуги,Інші витрати,246016,Центральний офіс,38558365,Україна,"Плата за розрахункове обслуговування по рахунку № 26006924866928.980 з 2020-06-12 по 2020-06-12 згідно Договору № 2019/КД/291-0048 від 2019-06-18 р, без ПДВ",UA443204780000026006924866928,current,0.80,"АБ ""Укргазбанк""",23697280,юридична особа
Самопоміч,"Львівська обл., Львів, вул. Іларіона Свєнціцького, буд. 1",76,2020-06-12,3434,Послуги зв’язку,Послуги зв’язку,246015,Центральний офіс,38558365,Україна,"Оплата за телекомунікаційні послуги за травень 2020 р по дог. №168754, згідно акту наданих послуг від 2020-05-31р. в т.ч. ПДВ 105.50 грн.",UA443204780000026006924866928,current,633.00,"ДП ""НТЦ ""Українська академічна і дослідницька мережа"" Інституту фізики конденсованих систем НАН України""",30275262,юридична особа
Самопоміч,"Львівська обл., Львів, вул. Джохара Дудаєва, буд. 19, 1",72,2020-06-12,3432,"Придбання, ремонт офісної техніки та програмного забезпечення (Бухгалтерські програми, Ліга.закон, домени)",Придбання офісної техніки та програмного забезпечення,246014,Центральний офіс,38558365,Україна,"Оплата за програмну продукцію з технічною підтримкою, згідно акту прийому передачі №1165 від 2020-04-30р.",UA443204780000026006924866928,current,5178.24,ТОВ ʼМАКЛАУДʼ,40231242,юридична особа
Самопоміч,"Київ, вул. Дегтярівська, буд. 53",76,2020-06-12,3433,Послуги зв’язку,Послуги зв’язку,246013,Центральний офіс,38558365,Україна,"Оплата за надані послуги мобільного звʼязку за травень 2020р., згідно рахунку №45-9874042 від 2020-05-31 р. в т.ч. ПДВ 73.73 грн.",UA443204780000026006924866928,current,470.00,"ПрАТ ""Київстар""",21673832,юридична особа
Самопоміч,"Львівська обл., Львів, вул. Гіпсова, буд. 54",78,2020-06-12,3435,Оренда обладнання та технічних засобів,Оренда обладнання та технічних засобів,245920,Центральний офіс,38558365,Україна,"Оплата за оренду принтера НР та покопійне обслуговування, згідно акту наданих послуг №1213 від 2020-06-04р.",UA443204780000026006924866928,current,1392.00,Кіхтан Андрій Володимирович,,фізична особа
Самопоміч,"Київ, вул. Єреванська, буд. 1",70,2020-06-10,TR.1170985_68,Банківські послуги,Інші витрати,246012,Центральний офіс,38558365,Україна,"Плата за розрахункове обслуговування по рахунку № 26006924866928.980 з 2020-06-10 по 2020-06-10 згідно Договору № 2019/КД/291-0048 від 2019-06-18 р, без ПДВ",UA443204780000026006924866928,current,0.80,"АБ ""Укргазбанк""",23697280,юридична особа
Самопоміч,"Київ, вул. Єреванська, буд. 1",70,2020-06-10,TR.1170985_67,Банківські послуги,Інші витрати,246011,Центральний офіс,38558365,Україна,"Плата за розрахункове обслуговування по рахунку № 26006924866928.980 з 2020-06-10 по 2020-06-10 згідно Договору № 2019/КД/291-0048 від 2019-06-18 р, без ПДВ",UA443204780000026006924866928,current,0.80,"АБ ""Укргазбанк""",23697280,юридична особа
Самопоміч,"Київ, вул. Єреванська, буд. 1",70,2020-06-10,TR.1170985_66,Банківські послуги,Інші витрати,246010,Центральний офіс,38558365,Україна,"Плата за розрахункове обслуговування по рахунку № 26006924866928.980 з 2020-06-10 по 2020-06-10 згідно Договору № 2019/КД/291-0048 від 2019-06-18 р, без ПДВ",UA443204780000026006924866928,current,0.80,"АБ ""Укргазбанк""",23697280,юридична особа
Самопоміч,"Київ, вул. Єреванська, буд. 1",70,2020-06-10,TR.1170985_65,Банківські послуги,Інші витрати,246009,Центральний офіс,38558365,Україна,"Плата за розрахункове обслуговування по рахунку № 26006924866928.980 з 2020-06-10 по 2020-06-10 згідно Договору № 2019/КД/291-0048 від 2019-06-18 р, без ПДВ",UA443204780000026006924866928,current,0.80,"АБ ""Укргазбанк""",23697280,юридична особа
Самопоміч,"Київ, вул. Єреванська, буд. 1",70,2020-06-10,TR.1170985,Банківські послуги,Інші витрати,246008,Центральний офіс,38558365,Україна,"Плата за розрахункове обслуговування по рахунку № 26006924866928.980 з 2020-06-10 по 2020-06-10 згідно Договору № 2019/КД/291-0048 від 2019-06-18 р, без ПДВ",UA443204780000026006924866928,current,0.80,"АБ ""Укргазбанк""",23697280,юридична особа
Самопоміч,"Полтавська обл., Полтава, вул. Європейська, буд. 57",75,2020-06-10,3427,Поштові послуги та поширення друкованих матеріалів,Поштові послуги та поширення друкованих матеріалів,246007,Центральний офіс,38558365,Україна,"Оплата за організацію перевезення відправлень, згідно акту наданих послуг № НП-003761270 від 2020-05-31 р. в т.ч. ПДВ 21.00 грн.",UA443204780000026006924866928,current,126.00,"ТОВ ""Нова пошта""",31316718,юридична особа
Самопоміч,"Полтавська обл., Полтава, вул. Європейська, буд. 57",75,2020-06-10,3428,Поштові послуги та поширення друкованих матеріалів,Поштові послуги та поширення друкованих матеріалів,246006,Центральний офіс,38558365,Україна,"Оплата за організацію перевезення відправлень, згідно акту наданих послуг № НП-003722912 від 2020-05-20 р. в т.ч. ПДВ 10.00 грн.",UA443204780000026006924866928,current,60.00,"ТОВ ""Нова пошта""",31316718,юридична особа
Самопоміч,"Полтавська обл., Полтава, вул. Європейська, буд. 57",75,2020-06-10,3429,Поштові послуги та поширення друкованих матеріалів,Поштові послуги та поширення друкованих матеріалів,246005,Центральний офіс,38558365,Україна,"Оплата за організацію перевезення відправлень, згідно акту наданих послуг № НП-003686920 від 2020-05-10 р. в т.ч. ПДВ 37.67 грн.",UA443204780000026006924866928,current,226.00,"ТОВ ""Нова пошта""",31316718,юридична особа
Самопоміч,"Полтавська обл., Полтава, вул. Європейська, буд. 57",75,2020-06-10,3430,Поштові послуги та поширення друкованих матеріалів,Поштові послуги та поширення друкованих матеріалів,246004,Центральний офіс,38558365,Україна,"Оплата за організацію перевезення відправлень, згідно акту наданих послуг № НП-003641237 від 2020-04-30 р. в т.ч. ПДВ 147.17 грн.",UA443204780000026006924866928,current,883.00,"ТОВ ""Нова пошта""",31316718,юридична особа
Самопоміч,"Полтавська обл., Полтава, вул. Європейська, буд. 57",75,2020-06-10,3431,Поштові послуги та поширення друкованих матеріалів,Поштові послуги та поширення друкованих матеріалів,246003,Центральний офіс,38558365,Україна,"Оплата за організацію перевезення відправлень, згідно акту наданих послуг № НП-003619361 від 2020-04-20 р. в т.ч. ПДВ 135.00 грн.",UA443204780000026006924866928,current,810.00,"ТОВ ""Нова пошта""",31316718,юридична особа
Самопоміч,"Житомирська обл., Брусилівський р-н, Брусилів, площа Базарна, буд. 25",74,2020-06-02,58,"Придбання канцтоварів, паперу, інших предметів і матеріалів, а також госп товари",Придбання канцтоварів та госп. товарів,246048,Дніпровська міська організація,39959985,Дніпропетровська область,ОПЛАТА ЗА ПАПІР ЗГІДНО РАХУНКУ №1-13485 ВІД 01 червня 2020 Р в т. ч. ПДВ 390.05 грн.,UA273204780000026003924419196,current,2340.30,ТОВ 'Папірус універсал',40959684,юридична особа
Самопоміч,"Вінницька обл., Вінниця, вул. Соборна, буд. 71",70,2020-06-01,5397053203,Банківські послуги,Інші витрати,246040,Барська районна організація,39919455,Вінницька область,Списання щомісячної плати за обслуговування ТП Моя громада за травень 2020 р.,UA453020760000026000171311565,current,99.00,"Вінницька обласна філія АТ ""Ощадбанк""",09302607,юридична особа
Самопоміч,"Вінницька обл., Вінниця, вул. Соборна, буд. 71",70,2020-06-01,5392026903,Банківські послуги,Інші витрати,246039,Барська районна організація,39919455,Вінницька область,Коміс.за розрах.обсл. рахунку 26000171311565 з 01-05-2020 по 31-05-2020. Без НДС,UA453020760000026000171311565,current,100.00,"Вінницька обласна філія АТ ""Ощадбанк""",09302607,юридична особа
Самопоміч,"Київ, вул. Єреванська, буд. 1",70,2020-05-29,TR.1170985_64,Банківські послуги,Інші витрати,246002,Центральний офіс,38558365,Україна,"Плата за розрахункове обслуговування по рахунку № 26006924866928.980 з 2020-05-29 по 2020-05-29 згідно Договору № 2019/КД/291-0048 від 2019-06-18 р, без ПДВ",UA443204780000026006924866928,current,0.80,"АБ ""Укргазбанк""",23697280,юридична особа
Самопоміч,"Київ, вул. Єреванська, буд. 1",70,2020-05-29,TR.1170985_63,Банківські послуги,Інші витрати,246001,Центральний офіс,38558365,Україна,"Плата за розрахункове обслуговування по рахунку № 26006924866928.980 з 2020-05-29 по 2020-05-29 згідно Договору № 2019/КД/291-0048 від 2019-06-18 р, без ПДВ",UA443204780000026006924866928,current,0.80,"АБ ""Укргазбанк""",23697280,юридична особа
Самопоміч,"Київ, вул. Єреванська, буд. 1",70,2020-05-29,TR.1170985,Банківські послуги,Інші витрати,246000,Центральний офіс,38558365,Україна,"Плата за розрахункове обслуговування по рахунку № 26006924866928.980 з 2020-05-29 по 2020-05-29 згідно Договору № 2019/КД/291-0048 від 2019-06-18 р, без ПДВ",UA443204780000026006924866928,current,0.80,"АБ ""Укргазбанк""",23697280,юридична особа
Самопоміч,"Київ, вул. Єреванська, буд. 1",70,2020-05-29,3426,Банківські послуги,Інші витрати,245999,Центральний офіс,38558365,Україна,Банківська комісія за виплату зарплати працівника за травень 2020 р.,UA443204780000026006924866928,current,42.16,"АБ ""Укргазбанк""",23697280,юридична особа
Самопоміч,"Київ, вул. Єреванська, буд. 1",70,2020-05-29,TR.1170985,Банківські послуги,Інші витрати,245998,Центральний офіс,38558365,Україна,"Абонлата за розрахункове обслуговування по рахунку № 26006924866928.980 за перiод з 2020-05-01 по 2020-05-31 зг. договору № 2019/КД/291-0048 від 2019-06-18 , без ПДВ",UA443204780000026006924866928,current,60.00,"АБ ""Укргазбанк""",23697280,юридична особа
Самопоміч,"Львівська обл., Львів, вул. Конотопська, буд. 6",63,2020-05-29,3422,Податок на доходи,Податкові платежі,245997,Центральний офіс,38558365,Україна,*;101;38558365; сплата ПДФО із зарплати працівника за травень 2020 р.;;;11010100,UA443204780000026006924866928,current,1885.26,УДКСУ у Франківському районі м. Львова,37965138,юридична особа
Самопоміч,"Львівська обл., Львів, вул. Стрийська, буд. 35",62,2020-05-29,3424,Сплата ЄСВ,Податкові платежі,245996,Центральний офіс,38558365,Україна,*;101;38558365; сплата єдиного соціального внеску 22% із зарплати працівника за травень 2020р .,UA443204780000026006924866928,current,2304.21,ГОЛОВНЕ УПРАВЛІННЯ ДФС У ЛЬВІВСЬКІЙ ОБЛАСТІ,43143039,юридична особа
Самопоміч,"Львівська обл., Львів, вул. Конотопська, буд. 6",61,2020-05-29,3423,Військовий збір,Податкові платежі,245995,Центральний офіс,38558365,Україна,*;101;38558365; сплата військового збору із зарплати працівника за травень 2020 р.;;; 11011000,UA443204780000026006924866928,current,157.11,УДКСУ у Франківському районі м. Львова,37965138,юридична особа
Самопоміч,"Львівська обл., Львів",84,2020-05-29,3425,"Заробітна плата, премії","Заробітна плата, лікарняні, вагітності, відрядження, компенсації",245924,Центральний офіс,38558365,Україна,Зарплата,UA443204780000026006924866928,current,8431.31,Кокорузь Марія Михайлівна,,фізична особа
Самопоміч,"Київ, вул. Братиславська, буд. 14Б",79,2020-05-25,5,"Оренда будинків і приміщень та експлуатаційні витрати (прибирання, страхування орендованих будинків, охорона, сигналізація, ремонт, вивіз сміття, тощо)",Оренда нерухомості,246038,Барська районна організація,39919455,Вінницька область,"Оплата за оренду нежитлового приміщення згідно договору від 04-01/2020 від 2020-01-02р., без ПДВ.",UA453020760000026000171311565,current,1020.00,"ТОВ ""Вектор БМ""",42258575,юридична особа
Самопоміч,"Київ, вул. Єреванська, буд. 1",70,2020-05-25,TR.1170985,Банківські послуги,Інші витрати,245994,Центральний офіс,38558365,Україна,"Плата за розрахункове обслуговування по рахунку № 26006924866928.980 з 2020-05-25 по 2020-05-25 згідно Договору № 2019/КД/291-0048 від 2019-06-18 р, без ПДВ",UA443204780000026006924866928,current,0.80,"АБ ""Укргазбанк""",23697280,юридична особа
Самопоміч,"Сумська обл., Конотоп, вул. Братів Лузанів, буд. 48",79,2020-05-25,3421,"Оренда будинків і приміщень та експлуатаційні витрати (прибирання, страхування орендованих будинків, охорона, сигналізація, ремонт, вивіз сміття, тощо)",Оренда нерухомості,245993,Центральний офіс,38558365,Україна,"Оплата за електроенергію, згідно акту надання послуг від 2020-05-19р.",UA443204780000026006924866928,current,122.70,Конотопське УДКСУв Сумській обл.,37784555,юридична особа
Самопоміч,"Київ, вул. Єреванська, буд. 1",70,2020-05-13,TR.1170985_62,Банківські послуги,Інші витрати,245992,Центральний офіс,38558365,Україна,"Плата за розрахункове обслуговування по рахунку № 26006924866928.980 з 2020-05-13 по 2020-05-13 згідно Договору № 2019/КД/291-0048 від 2019-06-18 р, без ПДВ",UA443204780000026006924866928,current,0.80,"АБ ""Укргазбанк""",23697280,юридична особа
Самопоміч,"Київ, вул. Єреванська, буд. 1",70,2020-05-13,TR.1170985_61,Банківські послуги,Інші витрати,245991,Центральний офіс,38558365,Україна,"Плата за розрахункове обслуговування по рахунку № 26006924866928.980 з 2020-05-13 по 2020-05-13 згідно Договору № 2019/КД/291-0048 від 2019-06-18 р, без ПДВ",UA443204780000026006924866928,current,0.80,"АБ ""Укргазбанк""",23697280,юридична особа
Самопоміч,"Київ, вул. Єреванська, буд. 1",70,2020-05-13,TR.1170985,Банківські послуги,Інші витрати,245990,Центральний офіс,38558365,Україна,"Плата за розрахункове обслуговування по рахунку № 26006924866928.980 з 2020-05-13 по 2020-05-13 згідно Договору № 2019/КД/291-0048 від 2019-06-18 р, без ПДВ",UA443204780000026006924866928,current,0.80,"АБ ""Укргазбанк""",23697280,юридична особа
Самопоміч,"Сумська обл., Конотоп, вул. Братів Лузанів, буд. 48",79,2020-05-13,3418,"Оренда будинків і приміщень та експлуатаційні витрати (прибирання, страхування орендованих будинків, охорона, сигналізація, ремонт, вивіз сміття, тощо)",Оренда нерухомості,245989,Центральний офіс,38558365,Україна,"Оплата за оренду нежитлового приміщення за квітень 2020р., згідно акту наданих послуг від 2020-05-12 року",UA443204780000026006924866928,current,2063.90,Конотопське УДКСУв Сумській обл.,37784555,юридична особа
Самопоміч,"Сумська обл., Конотоп, вул. Братів Лузанів, буд. 48",60,2020-05-13,3419,Інші податки,Податкові платежі,245988,Центральний офіс,38558365,Україна,"Оплата за компенсацію податку на землю за квітень 2020р., згідно акту наданих послуг від 04.05.20р.",UA443204780000026006924866928,current,150.65,Конотопське УДКСУв Сумській обл.,37784555,юридична особа
Самопоміч,"Сумська обл., Конотоп, вул. Братів Лузанів, буд. 48",79,2020-05-13,3420,"Оренда будинків і приміщень та експлуатаційні витрати (прибирання, страхування орендованих будинків, охорона, сигналізація, ремонт, вивіз сміття, тощо)",Оренда нерухомості,245987,Центральний офіс,38558365,Україна,"Оплата за вiдшкодування послуг теплопостачання за квітень 2020р., згiдно акту надани послуг вiд 2020-05-04р. в т.ч. ПДВ 385.89 грн.",UA443204780000026006924866928,current,2315.36,Конотопське УДКСУв Сумській обл.,37784555,юридична особа
Самопоміч,"Київ, вул. Михайла Грушевського, буд. 1Д",70,2020-05-06,AS0565718p,Банківські послуги,Інші витрати,246055,Чернівецька міська організація,39914787,Чернівецька область,"Комісія за обслуговування рахунку за квітень 2020 р., згідно договору банківського рахунку від 2015-09-29, без ПДВ.",UA913562820000026003051502635,current,100.00,"ПАТ КБ ""Приватбанк""",14360570,юридична особа
Самопоміч,"Київ, вул. Єреванська, буд. 1",70,2020-05-06,TR.1170985_60,Банківські послуги,Інші витрати,245986,Центральний офіс,38558365,Україна,"Плата за розрахункове обслуговування по рахунку № 26006924866928.980 з 2020-05-06 по 2020-05-06 згідно Договору № 2019/КД/291-0048 від 2019-06-18 р, без ПДВ",UA443204780000026006924866928,current,0.80,"АБ ""Укргазбанк""",23697280,юридична особа
Самопоміч,"Київ, вул. Єреванська, буд. 1",70,2020-05-06,TR.1170985_59,Банківські послуги,Інші витрати,245985,Центральний офіс,38558365,Україна,"Плата за розрахункове обслуговування по рахунку № 26006924866928.980 з 2020-05-06 по 2020-05-06 згідно Договору № 2019/КД/291-0048 від 2019-06-18 р, без ПДВ",UA443204780000026006924866928,current,0.80,"АБ ""Укргазбанк""",23697280,юридична особа
Самопоміч,"Київ, вул. Єреванська, буд. 1",70,2020-05-06,TR.1170985_58,Банківські послуги,Інші витрати,245984,Центральний офіс,38558365,Україна,"Плата за розрахункове обслуговування по рахунку № 26006924866928.980 з 2020-05-06 по 2020-05-06 згідно Договору № 2019/КД/291-0048 від 2019-06-18 р, без ПДВ",UA443204780000026006924866928,current,0.80,"АБ ""Укргазбанк""",23697280,юридична особа
Самопоміч,"Київ, вул. Єреванська, буд. 1",70,2020-05-06,TR.1170985,Банківські послуги,Інші витрати,245983,Центральний офіс,38558365,Україна,"Плата за розрахункове обслуговування по рахунку № 26006924866928.980 з 2020-05-06 по 2020-05-06 згідно Договору № 2019/КД/291-0048 від 2019-06-18 р, без ПДВ",UA443204780000026006924866928,current,0.80,"АБ ""Укргазбанк""",23697280,юридична особа
Самопоміч,"Львівська обл., Львів, вул. Іларіона Свєнціцького, буд. 1",76,2020-05-06,3417,Послуги зв’язку,Послуги зв’язку,245982,Центральний офіс,38558365,Україна,"Оплата за телекомунікаційні послуги за квітень 2020 р по дог. №168754, згідно рахунку №2823273 від 2020-05-05р. в т.ч. ПДВ 105.50 грн.",UA443204780000026006924866928,current,633.00,"ДП ""НТЦ ""Українська академічна і дослідницька мережа"" Інституту фізики конденсованих систем НАН України""",30275262,юридична особа
Самопоміч,"Київ, вул. Єреванська, буд. 1",70,2020-05-06,3415,Банківські послуги,Інші витрати,245981,Центральний офіс,38558365,Україна,Банківська комісія за виплату розрахункових працівника за травень 2020 р.,UA443204780000026006924866928,current,27.37,"АБ ""Укргазбанк""",23697280,юридична особа
Самопоміч,"Львівська обл., Львів, вул. Конотопська, буд. 6",63,2020-05-06,3412,Податок на доходи,Податкові платежі,245980,Центральний офіс,38558365,Україна,*;101;38558365; сплата ПДФО із розрахункових працівника за травень 2020 р.;;;11010100,UA443204780000026006924866928,current,1224.07,УДКСУ у Франківському районі м. Львова,37965138,юридична особа
Самопоміч,"Львівська обл., Львів, вул. Стрийська, буд. 35",62,2020-05-06,3413,Сплата ЄСВ,Податкові платежі,245979,Центральний офіс,38558365,Україна,*;101;38558365; сплата єдиного соціального внеску 22% із розрахункових працівника за травень 2020р .,UA443204780000026006924866928,current,1496.09,ГОЛОВНЕ УПРАВЛІННЯ ДФС У ЛЬВІВСЬКІЙ ОБЛАСТІ,43143039,юридична особа
Самопоміч,"Львівська обл., Львів, вул. Конотопська, буд. 6",61,2020-05-06,3414,Військовий збір,Податкові платежі,245978,Центральний офіс,38558365,Україна,*;101;38558365; сплата військового збору із розрахункових працівника за травень 2020 р.;;; 11011000,UA443204780000026006924866928,current,102.01,УДКСУ у Франківському районі м. Львова,37965138,юридична особа
Самопоміч,Київ,84,2020-05-06,3416,"Заробітна плата, премії","Заробітна плата, лікарняні, вагітності, відрядження, компенсації",245923,Центральний офіс,38558365,Україна,Зарплата,UA443204780000026006924866928,current,5474.32,Небрат Вікторія Петрівна,,фізична особа
Самопоміч,"Київ, вул. Єреванська, буд. 1",70,2020-05-05,TR.1170985_57,Банківські послуги,Інші витрати,245977,Центральний офіс,38558365,Україна,"Плата за розрахункове обслуговування по рахунку № 26006924866928.980 з 2020-05-05 по 2020-05-05 згідно Договору № 2019/КД/291-0048 від 2019-06-18 р, без ПДВ",UA443204780000026006924866928,current,0.80,"АБ ""Укргазбанк""",23697280,юридична особа
Самопоміч,"Київ, вул. Єреванська, буд. 1",70,2020-05-05,TR.1170985_56,Банківські послуги,Інші витрати,245976,Центральний офіс,38558365,Україна,"Плата за розрахункове обслуговування по рахунку № 26006924866928.980 з 2020-05-05 по 2020-05-05 згідно Договору № 2019/КД/291-0048 від 2019-06-18 р, без ПДВ",UA443204780000026006924866928,current,0.80,"АБ ""Укргазбанк""",23697280,юридична особа
Самопоміч,"Київ, вул. Єреванська, буд. 1",70,2020-05-05,TR.1170985_55,Банківські послуги,Інші витрати,245975,Центральний офіс,38558365,Україна,"Плата за розрахункове обслуговування по рахунку № 26006924866928.980 з 2020-05-05 по 2020-05-05 згідно Договору № 2019/КД/291-0048 від 2019-06-18 р, без ПДВ",UA443204780000026006924866928,current,0.80,"АБ ""Укргазбанк""",23697280,юридична особа
Самопоміч,"Київ, вул. Єреванська, буд. 1",70,2020-05-05,TR.1170985_54,Банківські послуги,Інші витрати,245974,Центральний офіс,38558365,Україна,"Плата за розрахункове обслуговування по рахунку № 26006924866928.980 з 2020-05-05 по 2020-05-05 згідно Договору № 2019/КД/291-0048 від 2019-06-18 р, без ПДВ",UA443204780000026006924866928,current,0.80,"АБ ""Укргазбанк""",23697280,юридична особа
Самопоміч,"Київ, вул. Єреванська, буд. 1",70,2020-05-05,TR.1170985,Банківські послуги,Інші витрати,245973,Центральний офіс,38558365,Україна,"Плата за розрахункове обслуговування по рахунку № 26006924866928.980 з 2020-05-05 по 2020-05-05 згідно Договору № 2019/КД/291-0048 від 2019-06-18 р, без ПДВ",UA443204780000026006924866928,current,0.80,"АБ ""Укргазбанк""",23697280,юридична особа
Самопоміч,"Київ, вул. Єреванська, буд. 1",70,2020-05-05,TR.1170950,Банківські послуги,Інші витрати,245972,Центральний офіс,38558365,Україна,"Оплата простроченої комісії РКО по рахунку 26008924418040.980 зг. договору N 2019/КД/291-0048 вiд 2019-06-18, без ПДВ",UA443204780000026006924866928,current,120.00,"АБ ""Укргазбанк""",23697280,юридична особа
Самопоміч,"Полтавська обл., Полтава, вул. Європейська, буд. 57",75,2020-05-05,3411,Поштові послуги та поширення друкованих матеріалів,Поштові послуги та поширення друкованих матеріалів,245971,Центральний офіс,38558365,Україна,"Оплата за організацію перевезення відправлень, згідно акту наданих послуг № НП-003565436 від 2020-04-10 р. в т.ч. ПДВ 87.83 грн.",UA443204780000026006924866928,current,527.00,"ТОВ ""Нова пошта""",31316718,юридична особа
Самопоміч,"Київ, вул. Дегтярівська, буд. 53",76,2020-05-05,3410,Послуги зв’язку,Послуги зв’язку,245970,Центральний офіс,38558365,Україна,"Оплата за надані послуги мобільного звʼязку за квітень 2020р., згідно рахунку №44-8993475 від 2020-04-30 р. в т.ч. ПДВ 77,65 грн.",UA443204780000026006924866928,current,495.00,"ПрАТ ""Київстар""",21673832,юридична особа
Самопоміч,"Київ, вул. Єреванська, буд. 1",70,2020-05-05,3408,Банківські послуги,Інші витрати,245969,Центральний офіс,38558365,Україна,Банківська комісія за виплату зарплати працівника за квітень 2020 р.,UA443204780000026006924866928,current,19.07,"АБ ""Укргазбанк""",23697280,юридична особа
Самопоміч,"Львівська обл., Львів, вул. Конотопська, буд. 6",63,2020-05-05,3407,Податок на доходи,Податкові платежі,245968,Центральний офіс,38558365,Україна,*;101;38558365; сплата ПДФО із зарплати працівника за квітень 2020 р.;;;11010100,UA443204780000026006924866928,current,852.86,УДКСУ у Франківському районі м. Львова,37965138,юридична особа
Самопоміч,"Львівська обл., Львів, вул. Стрийська, буд. 35",62,2020-05-05,3405,Сплата ЄСВ,Податкові платежі,245967,Центральний офіс,38558365,Україна,*;101;38558365; сплата єдиного соціального внеску 22% із зарплати працівника за квітень 2020р .,UA443204780000026006924866928,current,1206.81,ГОЛОВНЕ УПРАВЛІННЯ ДФС У ЛЬВІВСЬКІЙ ОБЛАСТІ,43143039,юридична особа
Самопоміч,"Львівська обл., Львів, вул. Конотопська, буд. 6",61,2020-05-05,3406,Військовий збір,Податкові платежі,245966,Центральний офіс,38558365,Україна,*;101;38558365; сплата військового збору із зарплати працівника за квітень 2020 р.;;; 11011000,UA443204780000026006924866928,current,71.07,УДКСУ у Франківському районі м. Львова,37965138,юридична особа
Самопоміч,"Львівська обл., Львів",84,2020-05-05,3409,"Заробітна плата, премії","Заробітна плата, лікарняні, вагітності, відрядження, компенсації",245922,Центральний офіс,38558365,Україна,Зарплата,UA443204780000026006924866928,current,3814.17,Кокорузь Марія Михайлівна,,фізична особа
Самопоміч,"Вінницька обл., Вінниця, вул. Соборна, буд. 71",70,2020-05-04,104132603,Банківські послуги,Інші витрати,246037,Барська районна організація,39919455,Вінницька область,Списання щомісячної плати за обслуговування ТП Моя громада за квітень 2020 р.,UA453020760000026000171311565,current,99.00,"Вінницька обласна філія АТ ""Ощадбанк""",09302607,юридична особа
Самопоміч,"Вінницька обл., Вінниця, вул. Соборна, буд. 71",70,2020-05-04,97683903,Банківські послуги,Інші витрати,246036,Барська районна організація,39919455,Вінницька область,Коміс.за розрах.обсл. рахунку 26000171311565 з 01-04-2020 по 30-04-2020. Без НДС,UA453020760000026000171311565,current,100.00,"Вінницька обласна філія АТ ""Ощадбанк""",09302607,юридична особа
Самопоміч,"Київ, вул. Єреванська, буд. 1",70,2020-04-30,TR.1170985,Банківські послуги,Інші витрати,245965,Центральний офіс,38558365,Україна,"Абонлата за розрахункове обслуговування по рахунку № 26006924866928.980 за перiод з 2020-04-01 по 2020-04-30 зг. договору № 2019/КД/291-0048 від 2019-06-18 , без ПДВ",UA443204780000026006924866928,current,60.00,"АБ ""Укргазбанк""",23697280,юридична особа
Самопоміч,"Київ, вул. Єреванська, буд. 1",70,2020-04-23,TR.1170985,Банківські послуги,Інші витрати,245964,Центральний офіс,38558365,Україна,"Плата за надання інших довідок, повідомлень за запитом власника рахунку згідно договору № 2019/КД/291-0048 від 2019-06-18 р. (без ПДВ)",UA443204780000026006924866928,current,3000.00,"АБ ""Укргазбанк""",23697280,юридична особа
Самопоміч,"Київ, вул. Братиславська, буд. 14Б",79,2020-04-16,4,"Оренда будинків і приміщень та експлуатаційні витрати (прибирання, страхування орендованих будинків, охорона, сигналізація, ремонт, вивіз сміття, тощо)",Оренда нерухомості,246035,Барська районна організація,39919455,Вінницька область,"Оплата за оренду нежитлового приміщення згідно договору від 01/04-2019 від 2019-04-01р., без ПДВ.",UA453020760000026000171311565,current,1020.00,"ТОВ ""Вектор БМ""",42258575,юридична особа
Самопоміч,"Київ, вул. Єреванська, буд. 1",70,2020-04-16,TR.1170985_53,Банківські послуги,Інші витрати,245963,Центральний офіс,38558365,Україна,"Плата за розрахункове обслуговування в після операційний час по рахунку № 26006924866928.980 з 2020-04-16 по 2020-04-16 згідно Договору № 2019/КД/291-0048 від 2019-06-18 р, без ПДВ",UA443204780000026006924866928,current,0.80,"АБ ""Укргазбанк""",23697280,юридична особа
Самопоміч,"Київ, вул. Єреванська, буд. 1",70,2020-04-16,TR.1170985,Банківські послуги,Інші витрати,245962,Центральний офіс,38558365,Україна,"Плата за розрахункове обслуговування в після операційний час по рахунку № 26006924866928.980 з 2020-04-16 по 2020-04-16 згідно Договору № 2019/КД/291-0048 від 2019-06-18 р, без ПДВ",UA443204780000026006924866928,current,0.80,"АБ ""Укргазбанк""",23697280,юридична особа
Самопоміч,"Сумська обл., Конотоп, вул. Братів Лузанів, буд. 48",79,2020-04-16,3403,"Оренда будинків і приміщень та експлуатаційні витрати (прибирання, страхування орендованих будинків, охорона, сигналізація, ремонт, вивіз сміття, тощо)",Оренда нерухомості,245961,Центральний офіс,38558365,Україна,"Оплата за оренду нежитлового приміщення за березень 2020р., згідно рахунку №37 від 2020-04-13 року",UA443204780000026006924866928,current,2047.60,Конотопське УДКСУв Сумській обл.,37784555,юридична особа
Самопоміч,"Сумська обл., Конотоп, вул. Братів Лузанів, буд. 48",79,2020-04-16,3404,"Оренда будинків і приміщень та експлуатаційні витрати (прибирання, страхування орендованих будинків, охорона, сигналізація, ремонт, вивіз сміття, тощо)",Оренда нерухомості,245960,Центральний офіс,38558365,Україна,"Оплата за електроенергію, згідно рахунку №121708/12 від 2020-04-14 року",UA443204780000026006924866928,current,141.80,Конотопське УДКСУв Сумській обл.,37784555,юридична особа
Самопоміч,"Київ, вул. Єреванська, буд. 1",70,2020-04-15,TR.1170985_52,Банківські послуги,Інші витрати,245959,Центральний офіс,38558365,Україна,"Плата за розрахункове обслуговування по рахунку № 26006924866928.980 з 2020-04-15 по 2020-04-15 згідно Договору № 2019/КД/291-0048 від 2019-06-18 р, без ПДВ",UA443204780000026006924866928,current,0.80,"АБ ""Укргазбанк""",23697280,юридична особа
Самопоміч,"Київ, вул. Єреванська, буд. 1",70,2020-04-15,TR.1170985_51,Банківські послуги,Інші витрати,245958,Центральний офіс,38558365,Україна,"Плата за розрахункове обслуговування по рахунку № 26006924866928.980 з 2020-04-15 по 2020-04-15 згідно Договору № 2019/КД/291-0048 від 2019-06-18 р, без ПДВ",UA443204780000026006924866928,current,0.80,"АБ ""Укргазбанк""",23697280,юридична особа
Самопоміч,"Київ, вул. Єреванська, буд. 1",70,2020-04-15,TR.1170985_50,Банківські послуги,Інші витрати,245957,Центральний офіс,38558365,Україна,"Плата за розрахункове обслуговування по рахунку № 26006924866928.980 з 2020-04-15 по 2020-04-15 згідно Договору № 2019/КД/291-0048 від 2019-06-18 р, без ПДВ",UA443204780000026006924866928,current,0.80,"АБ ""Укргазбанк""",23697280,юридична особа
Самопоміч,"Київ, вул. Єреванська, буд. 1",70,2020-04-15,TR.1170985_49,Банківські послуги,Інші витрати,245956,Центральний офіс,38558365,Україна,"Плата за розрахункове обслуговування по рахунку № 26006924866928.980 з 2020-04-15 по 2020-04-15 згідно Договору № 2019/КД/291-0048 від 2019-06-18 р, без ПДВ",UA443204780000026006924866928,current,0.80,"АБ ""Укргазбанк""",23697280,юридична особа
Самопоміч,"Київ, вул. Єреванська, буд. 1",70,2020-04-15,TR.1170985_48,Банківські послуги,Інші витрати,245955,Центральний офіс,38558365,Україна,"Плата за розрахункове обслуговування по рахунку № 26006924866928.980 з 2020-04-15 по 2020-04-15 згідно Договору № 2019/КД/291-0048 від 2019-06-18 р, без ПДВ",UA443204780000026006924866928,current,0.80,"АБ ""Укргазбанк""",23697280,юридична особа
Самопоміч,"Київ, вул. Єреванська, буд. 1",70,2020-04-15,TR.1170985,Банківські послуги,Інші витрати,245954,Центральний офіс,38558365,Україна,"Плата за розрахункове обслуговування по рахунку № 26006924866928.980 з 2020-04-15 по 2020-04-15 згідно Договору № 2019/КД/291-0048 від 2019-06-18 р, без ПДВ",UA443204780000026006924866928,current,0.80,"АБ ""Укргазбанк""",23697280,юридична особа
Самопоміч,"Київ, Повітрофлотський просп., 72",76,2020-04-15,3401,Послуги зв’язку,Послуги зв’язку,245953,Центральний офіс,38558365,Україна,"Оплата за телекомунікаційні послуги за березень 2020р., згідно акту наданих послуг від 2020-03-31р. договір № 8566-Т від 31.01.17 р. в т.ч. ПДВ 33.11 грн.",UA443204780000026006924866928,current,198.66,"ТОВ ""Укрком""",22891175,юридична особа
Самопоміч,"Київ, вул. Смоленська, буд. 31/33",76,2020-04-15,3402,Послуги зв’язку,Послуги зв’язку,245952,Центральний офіс,38558365,Україна,"Оплата за телекомунікаційні послуги за березень 2020 р., згідно акту наданих послуг від 31.03.20р. в т.ч. ПДВ 16.00 грн.",UA443204780000026006924866928,current,96.00,"ПрАТ ""Датагруп""",31720260,юридична особа
Самопоміч,"Львівська обл., Львів, вул. Іларіона Свєнціцького, буд. 1",76,2020-04-15,3400,Послуги зв’язку,Послуги зв’язку,245951,Центральний офіс,38558365,Україна,"Оплата за телекомунікаційні послуги за березень 2020 р по дог. №168754, згідно акту наданих послуг від 2020-03-31р. в т.ч. ПДВ 105.50 грн.",UA443204780000026006924866928,current,633.00,"ДП ""НТЦ ""Українська академічна і дослідницька мережа"" Інституту фізики конденсованих систем НАН України""",30275262,юридична особа
Самопоміч,"Київ, вул. Єреванська, буд. 1",70,2020-04-15,3396,Банківські послуги,Інші витрати,245950,Центральний офіс,38558365,Україна,Банківська комісія за виплату авансу працівника за квітень 2020 р.,UA443204780000026006924866928,current,22.88,"АБ ""Укргазбанк""",23697280,юридична особа
Самопоміч,"Львівська обл., Львів, вул. Конотопська, буд. 6",63,2020-04-15,3397,Податок на доходи,Податкові платежі,245949,Центральний офіс,38558365,Україна,*;101;38558365; сплата ПДФО із авансу працівника за квітень 2020 р.;;;11010100,UA443204780000026006924866928,current,1023.43,УДКСУ у Франківському районі м. Львова,37965138,юридична особа
Самопоміч,"Львівська обл., Львів, вул. Стрийська, буд. 35",62,2020-04-15,3398,Сплата ЄСВ,Податкові платежі,245948,Центральний офіс,38558365,Україна,*;101;38558365; сплата єдиного соціального внеску 22% із авансу працівника за квітень 2020р .,UA443204780000026006924866928,current,1250.86,ГОЛОВНЕ УПРАВЛІННЯ ДФС У ЛЬВІВСЬКІЙ ОБЛАСТІ,43143039,юридична особа
Самопоміч,"Львівська обл., Львів, вул. Конотопська, буд. 6",61,2020-04-15,3399,Військовий збір,Податкові платежі,245947,Центральний офіс,38558365,Україна,*;101;38558365; сплата військового збору із авансу працівника за квітень 2020 р.;;; 11011000,UA443204780000026006924866928,current,85.29,УДКСУ у Франківському районі м. Львова,37965138,юридична особа
Самопоміч,"Львівська обл., Львів",84,2020-04-15,3395,"Заробітна плата, премії","Заробітна плата, лікарняні, вагітності, відрядження, компенсації",245921,Центральний офіс,38558365,Україна,Зарплата,UA443204780000026006924866928,current,4576.99,Кокорузь Марія Михайлівна,,фізична особа
Самопоміч,"Чернівецька обл., Чернівці, вул. Кобилянської, буд. 11",60,2020-04-09,55,Інші податки,Податкові платежі,246054,Чернівецька міська організація,39914787,Чернівецька область,"*;101;39914787;22010300 адміністративний збір за проведення держ реєстр юр ос, фіз ос підприєм та громадських формувань;;;",UA913562820000026003051502635,current,630.00,УДКСУ у м. Чернівці,37978173,юридична особа
Самопоміч,"Київ, вул. Михайла Грушевського, буд. 1Д",70,2020-04-09,49037JRS1Y,Банківські послуги,Інші витрати,246053,Чернівецька міська організація,39914787,Чернівецька область,"Комісія за виконання платежів в національній валюті, згідно з відкритою офертою банку № б/н від 2015-09-29 та тарифів банку, без ПДВ.",UA913562820000026003051502635,current,2.00,"ПАТ КБ ""Приватбанк""",14360570,юридична особа
Самопоміч,"Київ, вул. Єреванська, буд. 1",70,2020-04-07,TR.1170985_47,Банківські послуги,Інші витрати,245946,Центральний офіс,38558365,Україна,"Плата за розрахункове обслуговування по рахунку № 26006924866928.980 з 2020-04-07 по 2020-04-07 згідно Договору № 2019/КД/291-0048 від 2019-06-18 р, без ПДВ",UA443204780000026006924866928,current,0.80,"АБ ""Укргазбанк""",23697280,юридична особа
Самопоміч,"Київ, вул. Єреванська, буд. 1",70,2020-04-07,TR.1170985,Банківські послуги,Інші витрати,245945,Центральний офіс,38558365,Україна,"Плата за розрахункове обслуговування по рахунку № 26006924866928.980 з 2020-04-07 по 2020-04-07 згідно Договору № 2019/КД/291-0048 від 2019-06-18 р, без ПДВ",UA443204780000026006924866928,current,0.80,"АБ ""Укргазбанк""",23697280,юридична особа
Самопоміч,"Полтавська обл., Полтава, вул. Європейська, буд. 57",75,2020-04-07,3394,Поштові послуги та поширення друкованих матеріалів,Поштові послуги та поширення друкованих матеріалів,245944,Центральний офіс,38558365,Україна,"Оплата за організацію перевезення відправлень, згідно акту наданих послуг № НП-003525159 від 2020-03-31 р. в т.ч. ПДВ 10.00 грн.",UA443204780000026006924866928,current,60.00,"ТОВ ""Нова пошта""",31316718,юридична особа
Самопоміч,"Київ, вул. Богдана Хмельницького, буд. 52Б",81,2020-04-07,3393,Аудит,"Гонорари, в тому числі за надані консультаційні послуги",245943,Центральний офіс,38558365,Україна,"Оплата за ІІ-й етап аудиторських послуг з виконання зовнішнього незалежного аудиту, згідно рахунку на оплату №41 від 05.02.20р. в т.ч. ПДВ 1666.67 грн.",UA443204780000026006924866928,current,10000.00,"ТОВ ""Аудиторська фірма “ПКФ Аудит-фінанси”",34619277,юридична особа
Самопоміч,"Київ, вул. Єреванська, буд. 1",70,2020-04-06,TR.1170985_46,Банківські послуги,Інші витрати,245942,Центральний офіс,38558365,Україна,"Плата за розрахункове обслуговування по рахунку № 26006924866928.980 з 2020-04-06 по 2020-04-06 згідно Договору № 2019/КД/291-0048 від 2019-06-18 р, без ПДВ",UA443204780000026006924866928,current,0.80,"АБ ""Укргазбанк""",23697280,юридична особа
Самопоміч,"Київ, вул. Єреванська, буд. 1",70,2020-04-06,TR.1170985_45,Банківські послуги,Інші витрати,245941,Центральний офіс,38558365,Україна,"Плата за розрахункове обслуговування по рахунку № 26006924866928.980 з 2020-04-06 по 2020-04-06 згідно Договору № 2019/КД/291-0048 від 2019-06-18 р, без ПДВ",UA443204780000026006924866928,current,0.80,"АБ ""Укргазбанк""",23697280,юридична особа
Самопоміч,"Київ, вул. Єреванська, буд. 1",70,2020-04-06,TR.1170985_44,Банківські послуги,Інші витрати,245940,Центральний офіс,38558365,Україна,"Плата за розрахункове обслуговування по рахунку № 26006924866928.980 з 2020-04-06 по 2020-04-06 згідно Договору № 2019/КД/291-0048 від 2019-06-18 р, без ПДВ",UA443204780000026006924866928,current,0.80,"АБ ""Укргазбанк""",23697280,юридична особа
Самопоміч,"Київ, вул. Єреванська, буд. 1",70,2020-04-06,TR.1170985,Банківські послуги,Інші витрати,245939,Центральний офіс,38558365,Україна,"Плата за розрахункове обслуговування по рахунку № 26006924866928.980 з 2020-04-06 по 2020-04-06 згідно Договору № 2019/КД/291-0048 від 2019-06-18 р, без ПДВ",UA443204780000026006924866928,current,0.80,"АБ ""Укргазбанк""",23697280,юридична особа
Самопоміч,"Київ, вул. Дегтярівська, буд. 53",76,2020-04-06,3389,Послуги зв’язку,Послуги зв’язку,245938,Центральний офіс,38558365,Україна,"Оплата за надані послуги мобільного звʼязку за березень 2020р., згідно рахунку №43-7005267 від 2020-03-31 р. в т.ч. ПДВ 129.26 грн.",UA443204780000026006924866928,current,775.56,"ПрАТ ""Київстар""",21673832,юридична особа
Самопоміч,"Сумська обл., Конотоп, вул. Братів Лузанів, буд. 48",60,2020-04-06,3390,Інші податки,Податкові платежі,245937,Центральний офіс,38558365,Україна,"Оплата за компенсацію податку на землю за березень 2020р., згідно акту наданих послуг від 04.04.20р.",UA443204780000026006924866928,current,150.65,Конотопське УДКСУв Сумській обл.,37784555,юридична особа
Самопоміч,"Сумська обл., Конотоп, вул. Братів Лузанів, буд. 48",79,2020-04-06,3391,"Оренда будинків і приміщень та експлуатаційні витрати (прибирання, страхування орендованих будинків, охорона, сигналізація, ремонт, вивіз сміття, тощо)",Оренда нерухомості,245936,Центральний офіс,38558365,Україна,"Оплата за вiдшкодування послуг теплопостачання за березень 2020р., згiдно акту надани послуг вiд 2020-04-04р. в т.ч. ПДВ 353.07 грн.",UA443204780000026006924866928,current,2118.44,Конотопське УДКСУв Сумській обл.,37784555,юридична особа
Самопоміч,"Хмельницька обл., Волочиський р-н, Волочиськ, вул. Незалежності, буд. 14",82,2020-04-06,3392,"Гонорари, в тому числі за надані консультаційні послуги","Гонорари, в тому числі за надані консультаційні послуги",245919,Центральний офіс,38558365,Україна,"Оплата за послуги з обслуговування веб-сайту, згiдно рахунку N06/04/20-7 вiд 06.04.20р.",UA443204780000026006924866928,current,5450.00,Страз Оксана Антонівна,,фізична особа
Самопоміч,"Київ, вул. Єреванська, буд. 1",70,2020-04-02,TR.1170985_43,Банківські послуги,Інші витрати,245935,Центральний офіс,38558365,Україна,"Плата за розрахункове обслуговування по рахунку № 26006924866928.980 з 2020-04-02 по 2020-04-02 згідно Договору № 2019/КД/291-0048 від 2019-06-18 р, без ПДВ",UA443204780000026006924866928,current,0.80,"АБ ""Укргазбанк""",23697280,юридична особа
Самопоміч,"Київ, вул. Єреванська, буд. 1",70,2020-04-02,TR.1170985,Банківські послуги,Інші витрати,245934,Центральний офіс,38558365,Україна,"Плата за розрахункове обслуговування по рахунку № 26006924866928.980 з 2020-04-02 по 2020-04-02 згідно Договору № 2019/КД/291-0048 від 2019-06-18 р, без ПДВ",UA443204780000026006924866928,current,0.80,"АБ ""Укргазбанк""",23697280,юридична особа
Самопоміч,"Львівська обл., Львів, вул. Широка, буд. 81",74,2020-04-02,3387,"Придбання канцтоварів, паперу, інших предметів і матеріалів, а також госп товари",Придбання канцтоварів та госп. товарів,245933,Центральний офіс,38558365,Україна,"Оплата за канцтовари, згідно накладної №26972 від 2020-02-24 р. в т.ч. ПДВ 473.41 грн.",UA443204780000026006924866928,current,2840.44,ТОВ 'Ромус-Поліграф',25551379,юридична особа
Самопоміч,"Львівська обл., Львів, вул. Гіпсова, буд. 54",78,2020-04-02,3388,Оренда обладнання та технічних засобів,Оренда обладнання та технічних засобів,245918,Центральний офіс,38558365,Україна,"Оплата за оренду принтера НР та покопійне обслуговування, згідно рахунку №224 від 2020-03-16р.",UA443204780000026006924866928,current,2063.75,Кіхтан Андрій Володимирович,,фізична особа
Самопоміч,"Київ, вул. Михайла Грушевського, буд. 1Д",70,2020-04-01,AN03v010qp,Банківські послуги,Інші витрати,246052,Чернівецька міська організація,39914787,Чернівецька область,"Комісія за обслуговування недіючого рахунку №26003051502635 за березень 2020 р., згідно тарифів банку, без ПДВ",UA913562820000026003051502635,current,100.00,"ПАТ КБ ""Приватбанк""",14360570,юридична особа
Самопоміч,"Київ, вул. Михайла Грушевського, буд. 1Д",70,2020-04-01,LHF9N00049,Банківські послуги,Інші витрати,246047,Волинська обласна організація,39923587,Волинська область,Погашення заборгованості за розрахунково-касове обслуговування згідно угоди РКО № б/н від 2015-09-23,UA803034400000026002055509934,current,3.00,"ПАТ КБ ""Приватбанк""",14360570,юридична особа
Самопоміч,"Київ, вул. Михайла Грушевського, буд. 1Д",70,2020-04-01,41036PGBJY,Банківські послуги,Інші витрати,246046,Волинська обласна організація,39923587,Волинська область,"Комісія за виконання платежів в національній валюті, згідно з відкритою офертою банку № б/н від 2015-09-23 та тарифів банку, без ПДВ.",UA803034400000026002055509934,current,3.00,"ПАТ КБ ""Приватбанк""",14360570,юридична особа
Самопоміч,"Київ, вул. Михайла Грушевського, буд. 1Д",70,2020-04-01,3ОМВ,Банківські послуги,Інші витрати,246042,Волинська обласна організація,39923587,Волинська область,Возврат ранее виплачених процентов при досрочном расторжении депозитного договора №718504 от 2017-07-07 (Н77VODSMOSHK5 ),UA803034400000026002055509934,current,64.48,"ПАТ КБ ""Приватбанк""",14360570,юридична особа
Самопоміч,"Вінницька обл., Вінниця, вул. Соборна, буд. 71",70,2020-04-01,4489052903,Банківські послуги,Інші витрати,246034,Барська районна організація,39919455,Вінницька область,Списання щомісячної плати за обслуговування ТП Моя громада за березень 2020 р.,UA453020760000026000171311565,current,99.00,"Вінницька обласна філія АТ ""Ощадбанк""",09302607,юридична особа
Самопоміч,"Вінницька обл., Вінниця, вул. Соборна, буд. 71",70,2020-04-01,4482907003,Банківські послуги,Інші витрати,246033,Барська районна організація,39919455,Вінницька область,Коміс.за розрах.обсл. рахунку 26000171311565 з 01-03-2020 по 31-03-2020. Без НДС,UA453020760000026000171311565,current,100.00,"Вінницька обласна філія АТ ""Ощадбанк""",09302607,юридична особа
Самопоміч,"Київ, вул. Михайла Грушевського, буд. 1",70,2020-04-01,AS03vbccup,Банківські послуги,Інші витрати,246032,Центральний офіс,38558365,Україна,"Комісія за обслуговування рахунку за березень 2020 р. згідно договору банківського рахунку від 2018-04-23, без ПДВ.",UA703253210000026001053732835,current,100.00,"ПАТ КБ ""Приватбанк""",14360570,юридична особа
Самопоміч,"Київ, вул. Єреванська, буд. 1",70,2020-04-01,TR.1170985_42,Банківські послуги,Інші витрати,245932,Центральний офіс,38558365,Україна,"Плата за розрахункове обслуговування по рахунку № 26006924866928.980 з 2020-04-01 по 2020-04-01 згідно Договору № 2019/КД/291-0048 від 2019-06-18 р, без ПДВ",UA443204780000026006924866928,current,0.80,"АБ ""Укргазбанк""",23697280,юридична особа
Самопоміч,"Київ, вул. Єреванська, буд. 1",70,2020-04-01,TR.1170985_41,Банківські послуги,Інші витрати,245931,Центральний офіс,38558365,Україна,"Плата за розрахункове обслуговування по рахунку № 26006924866928.980 з 2020-04-01 по 2020-04-01 згідно Договору № 2019/КД/291-0048 від 2019-06-18 р, без ПДВ",UA443204780000026006924866928,current,0.80,"АБ ""Укргазбанк""",23697280,юридична особа
Самопоміч,"Київ, вул. Єреванська, буд. 1",70,2020-04-01,TR.1170985_40,Банківські послуги,Інші витрати,245930,Центральний офіс,38558365,Україна,"Плата за розрахункове обслуговування по рахунку № 26006924866928.980 з 2020-04-01 по 2020-04-01 згідно Договору № 2019/КД/291-0048 від 2019-06-18 р, без ПДВ",UA443204780000026006924866928,current,0.80,"АБ ""Укргазбанк""",23697280,юридична особа
Самопоміч,"Київ, вул. Єреванська, буд. 1",70,2020-04-01,TR.1170985,Банківські послуги,Інші витрати,245929,Центральний офіс,38558365,Україна,"Плата за розрахункове обслуговування по рахунку № 26006924866928.980 з 2020-04-01 по 2020-04-01 згідно Договору № 2019/КД/291-0048 від 2019-06-18 р, без ПДВ",UA443204780000026006924866928,current,0.80,"АБ ""Укргазбанк""",23697280,юридична особа
Самопоміч,"Львівська обл., Львів, вул. Джохара Дудаєва, буд. 19, 1",72,2020-04-01,3384,"Придбання, ремонт офісної техніки та програмного забезпечення (Бухгалтерські програми, Ліга.закон, домени)",Придбання офісної техніки та програмного забезпечення,245928,Центральний офіс,38558365,Україна,"Оплата за програмну продукцію з технічною підтримкою, згідно рахунку №653 від 29.02.20р.",UA443204780000026006924866928,current,7462.22,ТОВ ʼМАКЛАУДʼ,40231242,юридична особа
Самопоміч,"Львівська обл., Львів, вул. Джохара Дудаєва, буд. 19, 1",72,2020-04-01,3385,"Придбання, ремонт офісної техніки та програмного забезпечення (Бухгалтерські програми, Ліга.закон, домени)",Придбання офісної техніки та програмного забезпечення,245927,Центральний офіс,38558365,Україна,"Оплата за програмну продукцію з технічною підтримкою, згідно акту №902 від 2020-03-31р.",UA443204780000026006924866928,current,12963.72,ТОВ ʼМАКЛАУДʼ,40231242,юридична особа
Самопоміч,"Полтавська обл., Полтава, вул. Європейська, буд. 57",75,2020-04-01,3386,Поштові послуги та поширення друкованих матеріалів,Поштові послуги та поширення друкованих матеріалів,245926,Центральний офіс,38558365,Україна,"Оплата за організацію перевезення відправлень, згідно акту наданих послуг № НП-003473413 від 2020-03-20 р. в т.ч. ПДВ 58.00 грн.",UA443204780000026006924866928,current,348.00,"ТОВ ""Нова пошта""",31316718,юридична особа
Самопоміч,"Хмельницька обл., Волочиський р-н, Волочиськ, вул. Незалежності, буд. 14",82,2020-04-01,3383,"Гонорари, в тому числі за надані консультаційні послуги","Гонорари, в тому числі за надані консультаційні послуги",245917,Центральний офіс,38558365,Україна,"Оплата за послуги з обслуговування веб-сайту, згiдно рахунку N01/04/20-1 вiд 01.04.20р.",UA443204780000026006924866928,current,1200.00,Страз Оксана Антонівна,,фізична особа
Самопоміч,"Київ, вул. Єреванська, буд. 1",70,2020-03-31,TR.1170985_39,Банківські послуги,Інші витрати,245867,Центральний офіс,38558365,Україна,"Плата за розрахункове обслуговування по рахунку № 26006924866928.980 з 2020-03-31 по 2020-03-31 згідно Договору № 2019/КД/291-0048 від 2019-06-18 р, без ПДВ",UA443204780000026006924866928,current,0.80,"АБ ""Укргазбанк""",23697280,юридична особа
Самопоміч,"Київ, вул. Єреванська, буд. 1",70,2020-03-31,TR.1170985_38,Банківські послуги,Інші витрати,245866,Центральний офіс,38558365,Україна,"Плата за розрахункове обслуговування по рахунку № 26006924866928.980 з 2020-03-31 по 2020-03-31 згідно Договору № 2019/КД/291-0048 від 2019-06-18 р, без ПДВ",UA443204780000026006924866928,current,0.80,"АБ ""Укргазбанк""",23697280,юридична особа
Самопоміч,"Київ, вул. Єреванська, буд. 1",70,2020-03-31,TR.1170985,Банківські послуги,Інші витрати,245865,Центральний офіс,38558365,Україна,"Плата за розрахункове обслуговування по рахунку № 26006924866928.980 з 2020-03-31 по 2020-03-31 згідно Договору № 2019/КД/291-0048 від 2019-06-18 р, без ПДВ",UA443204780000026006924866928,current,0.80,"АБ ""Укргазбанк""",23697280,юридична особа
Самопоміч,"Київ, вул. Єреванська, буд. 1",70,2020-03-31,3380,Банківські послуги,Інші витрати,245864,Центральний офіс,38558365,Україна,Банківська комісія за виплату зарплати працівника за березень 2020 р.,UA443204780000026006924866928,current,41.96,"АБ ""Укргазбанк""",23697280,юридична особа
Самопоміч,"Київ, вул. Єреванська, буд. 1",70,2020-03-31,TR.1170985,Банківські послуги,Інші витрати,245863,Центральний офіс,38558365,Україна,"Абонлата за розрахункове обслуговування по рахунку № 26006924866928.980 за перiод з 2020-03-01 по 2020-03-31 зг. договору № 2019/КД/291-0048 від 2019-06-18 , без ПДВ",UA443204780000026006924866928,current,60.00,"АБ ""Укргазбанк""",23697280,юридична особа
Самопоміч,"Львівська обл., Львів, вул. Конотопська, буд. 6",63,2020-03-31,3378,Податок на доходи,Податкові платежі,245862,Центральний офіс,38558365,Україна,*;101;38558365; сплата ПДФО із зарплати працівника за березень 2020 р.;;;11010100,UA443204780000026006924866928,current,1876.29,УДКСУ у Франківському районі м. Львова,37965138,юридична особа
Самопоміч,"Львівська обл., Львів, вул. Стрийська, буд. 35",62,2020-03-31,3382,Сплата ЄСВ,Податкові платежі,245861,Центральний офіс,38558365,Україна,*;101;38558365; сплата єдиного соціального внеску 22% із зарплати працівника за березень 2020р .,UA443204780000026006924866928,current,2397.35,ГОЛОВНЕ УПРАВЛІННЯ ДФС У ЛЬВІВСЬКІЙ ОБЛАСТІ,43143039,юридична особа
Самопоміч,"Львівська обл., Львів, вул. Конотопська, буд. 6",61,2020-03-31,3381,Військовий збір,Податкові платежі,245860,Центральний офіс,38558365,Україна,*;101;38558365; сплата військового збору із зарплати працівника за березень 2020 р.;;; 11011000,UA443204780000026006924866928,current,156.36,УДКСУ у Франківському районі м. Львова,37965138,юридична особа
Самопоміч,"Львівська обл., Львів",84,2020-03-31,3379,"Заробітна плата, премії","Заробітна плата, лікарняні, вагітності, відрядження, компенсації",245746,Центральний офіс,38558365,Україна,Зарплата,UA443204780000026006924866928,current,8391.16,Кокорузь Марія Михайлівна,,фізична особа
Самопоміч,"Київ, вул. Єреванська, буд. 1",70,2020-03-25,TR.1170985,Банківські послуги,Інші витрати,245859,Центральний офіс,38558365,Україна,"Плата за розрахункове обслуговування по рахунку № 26006924866928.980 з 2020-03-25 по 2020-03-25 згідно Договору № 2019/КД/291-0048 від 2019-06-18 р, без ПДВ",UA443204780000026006924866928,current,0.80,"АБ ""Укргазбанк""",23697280,юридична особа
Самопоміч,"Львівська обл., Львів, вул. Шевченка, буд. 1",79,2020-03-25,3377,"Оренда будинків і приміщень та експлуатаційні витрати (прибирання, страхування орендованих будинків, охорона, сигналізація, ремонт, вивіз сміття, тощо)",Оренда нерухомості,245858,Центральний офіс,38558365,Україна,"Оплата за електричну енергію за лютий 2020 р., згідно акту наданих послуг від 2020-02-29 р. в т.ч. ПДВ 2052.02 грн.",UA443204780000026006924866928,current,12312.12,"ТОВ ""Львівенергозбут""",42092130,юридична особа
Самопоміч,"Київ, вул. Братиславська, буд. 14Б",79,2020-03-24,3,"Оренда будинків і приміщень та експлуатаційні витрати (прибирання, страхування орендованих будинків, охорона, сигналізація, ремонт, вивіз сміття, тощо)",Оренда нерухомості,245905,Барська районна організація,39919455,Вінницька область,"Оплата за оренду нежитлового приміщення згідно договору від 01/04-2019 від 2019-04-01р., без ПДВ.",UA453020760000026000171311565,current,1020.00,"ТОВ ""Вектор БМ""",42258575,юридична особа
Самопоміч,"Київ, вул. Єреванська, буд. 1",70,2020-03-19,TR.1170985_37,Банківські послуги,Інші витрати,245857,Центральний офіс,38558365,Україна,"Плата за розрахункове обслуговування по рахунку № 26006924866928.980 з 2020-03-19 по 2020-03-19 згідно Договору № 2019/КД/291-0048 від 2019-06-18 р, без ПДВ",UA443204780000026006924866928,current,0.80,"АБ ""Укргазбанк""",23697280,юридична особа
Самопоміч,"Київ, вул. Єреванська, буд. 1",70,2020-03-19,TR.1170985_36,Банківські послуги,Інші витрати,245856,Центральний офіс,38558365,Україна,"Плата за розрахункове обслуговування по рахунку № 26006924866928.980 з 2020-03-19 по 2020-03-19 згідно Договору № 2019/КД/291-0048 від 2019-06-18 р, без ПДВ",UA443204780000026006924866928,current,0.80,"АБ ""Укргазбанк""",23697280,юридична особа
Самопоміч,"Київ, вул. Єреванська, буд. 1",70,2020-03-19,TR.1170985_35,Банківські послуги,Інші витрати,245855,Центральний офіс,38558365,Україна,"Плата за розрахункове обслуговування по рахунку № 26006924866928.980 з 2020-03-19 по 2020-03-19 згідно Договору № 2019/КД/291-0048 від 2019-06-18 р, без ПДВ",UA443204780000026006924866928,current,0.80,"АБ ""Укргазбанк""",23697280,юридична особа
Самопоміч,"Київ, вул. Єреванська, буд. 1",70,2020-03-19,TR.1170985_34,Банківські послуги,Інші витрати,245854,Центральний офіс,38558365,Україна,"Плата за розрахункове обслуговування по рахунку № 26006924866928.980 з 2020-03-19 по 2020-03-19 згідно Договору № 2019/КД/291-0048 від 2019-06-18 р, без ПДВ",UA443204780000026006924866928,current,0.80,"АБ ""Укргазбанк""",23697280,юридична особа
Самопоміч,"Київ, вул. Єреванська, буд. 1",70,2020-03-19,TR.1170985_33,Банківські послуги,Інші витрати,245853,Центральний офіс,38558365,Україна,"Плата за розрахункове обслуговування по рахунку № 26006924866928.980 з 2020-03-19 по 2020-03-19 згідно Договору № 2019/КД/291-0048 від 2019-06-18 р, без ПДВ",UA443204780000026006924866928,current,0.80,"АБ ""Укргазбанк""",23697280,юридична особа
Самопоміч,"Київ, вул. Єреванська, буд. 1",70,2020-03-19,TR.1170985_32,Банківські послуги,Інші витрати,245852,Центральний офіс,38558365,Україна,"Плата за розрахункове обслуговування по рахунку № 26006924866928.980 з 2020-03-19 по 2020-03-19 згідно Договору № 2019/КД/291-0048 від 2019-06-18 р, без ПДВ",UA443204780000026006924866928,current,0.80,"АБ ""Укргазбанк""",23697280,юридична особа
Самопоміч,"Київ, вул. Єреванська, буд. 1",70,2020-03-19,TR.1170985_31,Банківські послуги,Інші витрати,245851,Центральний офіс,38558365,Україна,"Плата за розрахункове обслуговування по рахунку № 26006924866928.980 з 2020-03-19 по 2020-03-19 згідно Договору № 2019/КД/291-0048 від 2019-06-18 р, без ПДВ",UA443204780000026006924866928,current,0.80,"АБ ""Укргазбанк""",23697280,юридична особа
Самопоміч,"Київ, вул. Єреванська, буд. 1",70,2020-03-19,TR.1170985,Банківські послуги,Інші витрати,245850,Центральний офіс,38558365,Україна,"Плата за розрахункове обслуговування по рахунку № 26006924866928.980 з 2020-03-19 по 2020-03-19 згідно Договору № 2019/КД/291-0048 від 2019-06-18 р, без ПДВ",UA443204780000026006924866928,current,0.80,"АБ ""Укргазбанк""",23697280,юридична особа
Самопоміч,"Київ, Повітрофлотський просп., 72",76,2020-03-19,3373,Послуги зв’язку,Послуги зв’язку,245849,Центральний офіс,38558365,Україна,"Оплата за телекомунікаційні послуги за лютий 2020р., згідно акту наданих послуг від 2020-02-29р. договір № 8566-Т від 31.01.17 р. в т.ч. ПДВ 34.30 грн.",UA443204780000026006924866928,current,205.81,"ТОВ ""Укрком""",22891175,юридична особа
Самопоміч,"Київ, вул. Смоленська, буд. 31/33",76,2020-03-19,3374,Послуги зв’язку,Послуги зв’язку,245848,Центральний офіс,38558365,Україна,"Оплата за телекомунікаційні послуги за лютий 2020 р., згідно акту наданих послуг від 29.02.20р. в т.ч. ПДВ 16.00 грн.",UA443204780000026006924866928,current,96.00,"ПрАТ ""Датагруп""",31720260,юридична особа
Самопоміч,"Полтавська обл., Полтава, вул. Європейська, буд. 57",80,2020-03-19,3376,"Транспортні послуги (квитки, пасажирські перевезення і т.д.)","Транспортні послуги (квитки, пасажирські перевезення і т.д.)",245847,Центральний офіс,38558365,Україна,"Оплата за організацію перевезення відправлень, згідно акту наданих послуг № НП-003456347 від 2020-03-10 р. в т.ч. ПДВ 40.00 грн.",UA443204780000026006924866928,current,240.00,"ТОВ ""Нова пошта""",31316718,юридична особа
Самопоміч,"Полтавська обл., Полтава, вул. Європейська, буд. 57",80,2020-03-19,3375,"Транспортні послуги (квитки, пасажирські перевезення і т.д.)","Транспортні послуги (квитки, пасажирські перевезення і т.д.)",245846,Центральний офіс,38558365,Україна,"Оплата за організацію перевезення відправлень, згідно акту наданих послуг № НП-003397993 від 2020-02-29 р. в т.ч. ПДВ 21.00 грн.",UA443204780000026006924866928,current,126.00,"ТОВ ""Нова пошта""",31316718,юридична особа
Самопоміч,"Сумська обл., Конотоп, вул. Братів Лузанів, буд. 48",79,2020-03-19,3372,"Оренда будинків і приміщень та експлуатаційні витрати (прибирання, страхування орендованих будинків, охорона, сигналізація, ремонт, вивіз сміття, тощо)",Оренда нерухомості,245845,Центральний офіс,38558365,Україна,"Оплата за електроенергію, згідно рахунку №121708/15 від 2020-03-16 року",UA443204780000026006924866928,current,125.30,Конотопське УДКСУв Сумській обл.,37784555,юридична особа
Самопоміч,"Київ, вул. Єреванська, буд. 1",70,2020-03-19,3371,Банківські послуги,Інші витрати,245844,Центральний офіс,38558365,Україна,Банківська комісія за виплату авансу працівника за березень 2020 р.,UA443204780000026006924866928,current,38.14,"АБ ""Укргазбанк""",23697280,юридична особа
Самопоміч,"Львівська обл., Львів, вул. Конотопська, буд. 6",63,2020-03-19,3368,Податок на доходи,Податкові платежі,245843,Центральний офіс,38558365,Україна,*;101;38558365; сплата ПДФО із авансу працівника за березень 2020 р.;;;11010100,UA443204780000026006924866928,current,1705.71,УДКСУ у Франківському районі м. Львова,37965138,юридична особа
Самопоміч,"Львівська обл., Львів, вул. Стрийська, буд. 35",62,2020-03-19,3369,Сплата ЄСВ,Податкові платежі,245842,Центральний офіс,38558365,Україна,*;101;38558365; сплата єдиного соціального внеску 22% із авансу працівника за березень 2020р .,UA443204780000026006924866928,current,2084.76,ГОЛОВНЕ УПРАВЛІННЯ ДФС У ЛЬВІВСЬКІЙ ОБЛАСТІ,43143039,юридична особа
Самопоміч,"Львівська обл., Львів, вул. Конотопська, буд. 6",61,2020-03-19,3367,Військовий збір,Податкові платежі,245841,Центральний офіс,38558365,Україна,*;101;38558365; сплата військового збору із авансу працівника за березень 2020 р.;;; 11011000,UA443204780000026006924866928,current,142.14,УДКСУ у Франківському районі м. Львова,37965138,юридична особа
Самопоміч,"Львівська обл., Львів",84,2020-03-19,3370,"Заробітна плата, премії","Заробітна плата, лікарняні, вагітності, відрядження, компенсації",245745,Центральний офіс,38558365,Україна,Зарплата,UA443204780000026006924866928,current,7628.34,Кокорузь Марія Михайлівна,,фізична особа
Самопоміч,"Сумська обл., Конотоп, вул. Братів Лузанів, буд. 48",79,2020-03-13,277,"Оренда будинків і приміщень та експлуатаційні витрати (прибирання, страхування орендованих будинків, охорона, сигналізація, ремонт, вивіз сміття, тощо)",Оренда нерухомості,245896,Центральний офіс,38558365,Україна,"Оплата за оренду нежитлового примiщення за лютий 2020р., згiдно рахунку N24 вiд 11.03.20р.",UA703253210000026001053732835,current,2031.30,Конотопське УДКСУв Сумській обл.,37784555,юридична особа
Самопоміч,"Сумська обл., Конотоп, вул. Братів Лузанів, буд. 48",60,2020-03-13,275,Інші податки,Податкові платежі,245895,Центральний офіс,38558365,Україна,"Оплата за компенсацію податку на землю за лютий 2020р., згідно акту наданих послуг від 04.03.20р.",UA703253210000026001053732835,current,150.65,Конотопське УДКСУв Сумській обл.,37784555,юридична особа
Самопоміч,"Сумська обл., Конотоп, вул. Братів Лузанів, буд. 48",79,2020-03-13,276,"Оренда будинків і приміщень та експлуатаційні витрати (прибирання, страхування орендованих будинків, охорона, сигналізація, ремонт, вивіз сміття, тощо)",Оренда нерухомості,245894,Центральний офіс,38558365,Україна,"Оплата за вiдшкодування послуг теплопостачання за лютий 2020р., згiдно рахунку N11 вiд 2020-03-04р. в т. ч. ПДВ 465,29 грн",UA703253210000026001053732835,current,2791.73,Конотопське УДКСУв Сумській обл.,37784555,юридична особа
Самопоміч,"Київ, вул. Михайла Грушевського, буд. 1Д",70,2020-03-13,3DO34O66AY,Банківські послуги,Інші витрати,245893,Центральний офіс,38558365,Україна,"Комiсiя за виконання платежiв в нацiональнiй валютi, згiдно з вiдкритою офертою банку N б/н вiд 2018-04-23 та тарифiв банку, без ПДВ.",UA703253210000026001053732835,current,3.00,"ПАТ КБ ""Приватбанк""",14360570,юридична особа
Самопоміч,"Київ, вул. Михайла Грушевського, буд. 1Д",70,2020-03-13,3DO34O2AIY,Банківські послуги,Інші витрати,245892,Центральний офіс,38558365,Україна,"Комiсiя за виконання платежiв в нацiональнiй валютi, згiдно з вiдкритою офертою банку N б/н вiд 2018-04-23 та тарифiв банку, без ПДВ.",UA703253210000026001053732835,current,3.00,"ПАТ КБ ""Приватбанк""",14360570,юридична особа
Самопоміч,"Київ, вул. Михайла Грушевського, буд. 1Д",70,2020-03-13,3DO34NZIX,Банківські послуги,Інші витрати,245891,Центральний офіс,38558365,Україна,"Комiсiя за виконання платежiв в нацiональнiй валютi, згiдно з вiдкритою офертою банку N б/н вiд 2018-04-23 та тарифiв банку, без ПДВ.",UA703253210000026001053732835,current,3.00,"ПАТ КБ ""Приватбанк""",14360570,юридична особа
Самопоміч,"Львівська обл., Львів",65,2020-03-13,274,Перерахування внесків приватних донорів до держбюджету,Перерахування внесків приватних донорів до держбюджету,245728,Центральний офіс,38558365,Україна,"повернення зг. ст. 15 ЗУ ""Про полiтичнi партiї в Українi"" (помилкове призначення платежу вiд 12.03.20)",UA703253210000026001053732835,current,1000.00,Паньків Христина Володимирівна,,фізична особа
Самопоміч,Київ,65,2020-03-13,273,Перерахування внесків приватних донорів до держбюджету,Перерахування внесків приватних донорів до держбюджету,245727,Центральний офіс,38558365,Україна,"повернення зг. ст. 15 ЗУ ""Про полiтичнi партiї в Українi"" (помилкове призначення платежу вiд 11.03.20)",UA703253210000026001053732835,current,500.00,Шапаренко Віталій Вікторович,,фізична особа
Самопоміч,"Київ, вул. Єреванська, буд. 1",70,2020-03-11,TR.1170985,Банківські послуги,Інші витрати,245840,Центральний офіс,38558365,Україна,"Плата за розрахункове обслуговування в після операційний час по рахунку № 26006924866928.980 з 2020-03-11 по 2020-03-11 згідно Договору № 2019/КД/291-0048 від 2019-06-18 р, без ПДВ",UA443204780000026006924866928,current,0.80,"АБ ""Укргазбанк""",23697280,юридична особа
Самопоміч,"Львівська обл., Львів, вул. Джохара Дудаєва, буд. 19",72,2020-03-11,3366,"Придбання, ремонт офісної техніки та програмного забезпечення (Бухгалтерські програми, Ліга.закон, домени)",Придбання офісної техніки та програмного забезпечення,245839,Центральний офіс,38558365,Україна,"Оплата за програмну продукцію з технічною підтримкою, згідно рахунку №653 від 29.02.20р.",UA443204780000026006924866928,current,4000.00,ТОВ ʼМАКЛАУДʼ,40231242,юридична особа
Самопоміч,"Київ, вул. Михайла Грушевського, буд. 1Д",70,2020-03-10,LHI4N00092,Банківські послуги,Інші витрати,245890,Центральний офіс,38558365,Україна,Погашення заборгованостi за розрахунково-касове обслуговування згiдно угоди РКО N б/н вiд 2018-04-23,UA703253210000026001053732835,current,3.54,"ПАТ КБ ""Приватбанк""",14360570,юридична особа
Самопоміч,"Київ, вул. Єреванська, буд. 1",70,2020-03-10,TR.1170985_30,Банківські послуги,Інші витрати,245838,Центральний офіс,38558365,Україна,"Плата за розрахункове обслуговування в після операційний час по рахунку № 26006924866928.980 з 2020-03-10 по 2020-03-10 згідно Договору № 2019/КД/291-0048 від 2019-06-18 р, без ПДВ",UA443204780000026006924866928,current,0.80,"АБ ""Укргазбанк""",23697280,юридична особа
Самопоміч,"Київ, вул. Єреванська, буд. 1",70,2020-03-10,TR.1170985,Банківські послуги,Інші витрати,245837,Центральний офіс,38558365,Україна,"Плата за розрахункове обслуговування в після операційний час по рахунку № 26006924866928.980 з 2020-03-10 по 2020-03-10 згідно Договору № 2019/КД/291-0048 від 2019-06-18 р, без ПДВ",UA443204780000026006924866928,current,0.80,"АБ ""Укргазбанк""",23697280,юридична особа
Самопоміч,"Львівська обл., Львів, вул. Іларіона Свєнціцького, буд. 1",76,2020-03-10,3364,Послуги зв’язку,Послуги зв’язку,245836,Центральний офіс,38558365,Україна,"Оплата за телекомунікаційні послуги за лютий 2020 р по дог. №168754, згідно рахунку №2806625 від 2020-03-03р. в т.ч. ПДВ 105.50 грн.",UA443204780000026006924866928,current,633.00,"ДП ""НТЦ ""Українська академічна і дослідницька мережа"" Інституту фізики конденсованих систем НАН України""",30275262,юридична особа
Самопоміч,"Хмельницька обл., Волочиський р-н, Волочиськ, вул. Незалежності, буд. 14",48,2020-03-10,3365,Публікування матеріалів у мережі Інтернет,Реклама в інтернеті,245733,Центральний офіс,38558365,Україна,"Оплата за послуги з обслуговування веб-сайту, згiдно рахунку N14/02/20-2 вiд 14.02.20р.",UA443204780000026006924866928,current,450.00,Страз Оксана Антонівна,,фізична особа
Самопоміч,"Київ, вул. Єреванська, буд. 1",70,2020-03-04,TR.1170985_29,Банківські послуги,Інші витрати,245835,Центральний офіс,38558365,Україна,"Плата за розрахункове обслуговування по рахунку № 26006924866928.980 з 2020-03-04 по 2020-03-04 згідно Договору № 2019/КД/291-0048 від 2019-06-18 р, без ПДВ",UA443204780000026006924866928,current,0.80,"АБ ""Укргазбанк""",23697280,юридична особа
Самопоміч,"Київ, вул. Єреванська, буд. 1",70,2020-03-04,TR.1170985_28,Банківські послуги,Інші витрати,245834,Центральний офіс,38558365,Україна,"Плата за розрахункове обслуговування по рахунку № 26006924866928.980 з 2020-03-04 по 2020-03-04 згідно Договору № 2019/КД/291-0048 від 2019-06-18 р, без ПДВ",UA443204780000026006924866928,current,0.80,"АБ ""Укргазбанк""",23697280,юридична особа
Самопоміч,"Київ, вул. Єреванська, буд. 1",70,2020-03-04,TR.1170985,Банківські послуги,Інші витрати,245833,Центральний офіс,38558365,Україна,"Плата за розрахункове обслуговування по рахунку № 26006924866928.980 з 2020-03-04 по 2020-03-04 згідно Договору № 2019/КД/291-0048 від 2019-06-18 р, без ПДВ",UA443204780000026006924866928,current,0.80,"АБ ""Укргазбанк""",23697280,юридична особа
Самопоміч,"Полтавська обл., Полтава, вул. Європейська, буд. 57",80,2020-03-04,3363,"Транспортні послуги (квитки, пасажирські перевезення і т.д.)","Транспортні послуги (квитки, пасажирські перевезення і т.д.)",245832,Центральний офіс,38558365,Україна,"Оплата за організацію перевезення відправлень, згідно акту наданих послуг № НП-003361595 від 2020-02-20 р. в т.ч. ПДВ 15.00 грн.",UA443204780000026006924866928,current,90.00,"ТОВ ""Нова пошта""",31316718,юридична особа
Самопоміч,"Полтавська обл., Полтава, вул. Європейська, буд. 57",80,2020-03-04,3361,"Транспортні послуги (квитки, пасажирські перевезення і т.д.)","Транспортні послуги (квитки, пасажирські перевезення і т.д.)",245831,Центральний офіс,38558365,Україна,"Оплата за організацію перевезення відправлень, згідно акту наданих послуг № НП-003328967 від 2020-02-10 р. в т.ч. ПДВ 165.04 грн.",UA443204780000026006924866928,current,990.25,"ТОВ ""Нова пошта""",31316718,юридична особа
Самопоміч,"Полтавська обл., Полтава, вул. Європейська, буд. 57",80,2020-03-04,3362,"Транспортні послуги (квитки, пасажирські перевезення і т.д.)","Транспортні послуги (квитки, пасажирські перевезення і т.д.)",245830,Центральний офіс,38558365,Україна,"Оплата за організацію перевезення відправлень, згідно акту наданих послуг № НП-003277843 від 2020-01-31 р. в т.ч. ПДВ 215.70 грн.",UA443204780000026006924866928,current,1294.20,"ТОВ ""Нова пошта""",31316718,юридична особа
Самопоміч,"Київ, вул. Єреванська, буд. 1",70,2020-03-03,TR.1170985,Банківські послуги,Інші витрати,245829,Центральний офіс,38558365,Україна,"Плата за розрахункове обслуговування по рахунку № 26006924866928.980 з 2020-03-03 по 2020-03-03 згідно Договору № 2019/КД/291-0048 від 2019-06-18 р, без ПДВ",UA443204780000026006924866928,current,0.80,"АБ ""Укргазбанк""",23697280,юридична особа
Самопоміч,"Київ, вул. Дегтярівська, буд. 53",76,2020-03-03,3360,Послуги зв’язку,Послуги зв’язку,245828,Центральний офіс,38558365,Україна,"Оплата за надані послуги мобільного звʼязку за лютий 2020р., згідно рахунку від 2020-02-29 р. в т.ч. ПДВ 16.67 грн. по договору 7605523",UA443204780000026006924866928,current,100.00,"ПрАТ ""Київстар""",21673832,юридична особа
Самопоміч,"Київ, вул. Михайла Грушевського, буд. 1Д",70,2020-03-02,AN02s0emlp,Банківські послуги,Інші витрати,245916,Мелітопольська міська організація,39964031,Запорізька область,"Комісія за обслуговування недіючого рахунку №26008055723683 за лютий 2020 р., згідно тарифів банку, без ПДВ",26008055723683,current,100.00,"ПАТ КБ ""Приватбанк""",14360570,юридична особа
Самопоміч,"Київ, вул. Михайла Грушевського",70,2020-03-02,AN02S020OP,Банківські послуги,Інші витрати,245907,Вінницька міська організація,39916686,Вінницька область,"Комісія за обслуговування недіючого рахунку № 26001055325259 за лютий 2020 р., згідно тарифів банку, без ПДВ",UA363026890000026001055325259,current,100.00,"ПАТ КБ ""Приватбанк""",14360570,юридична особа
Самопоміч,"Вінницька обл., Вінниця, вул. Соборна, буд. 71",70,2020-03-02,7530253803,Банківські послуги,Інші витрати,245904,Барська районна організація,39919455,Вінницька область,Коміс.за розрах.обсл. рахунку 26000171311565 з 01-02-2020 по 29-02-2020. Без НДС,UA453020760000026000171311565,current,100.00,"Вінницька обласна філія АТ ""Ощадбанк""",09302607,юридична особа
Самопоміч,"Вінницька обл., Вінниця, вул. Соборна, буд. 71",70,2020-03-02,7744106803,Банківські послуги,Інші витрати,245903,Барська районна організація,39919455,Вінницька область,Списання щомісячної плати за обслуговування ТП Моя громада за за лютий 2020 р.,UA453020760000026000171311565,current,99.00,"Вінницька обласна філія АТ ""Ощадбанк""",09302607,юридична особа
Самопоміч,"Київ, вул. Михайла Грушевського, буд. 1Д",70,2020-03-02,AS02s0payp,Банківські послуги,Інші витрати,245889,Центральний офіс,38558365,Україна,"Комісія за обслуговування рахунку за лютий 2020 р. згідно договору банківського рахунку від 2018-04-23, без ПДВ.",UA703253210000026001053732835,current,96.46,"ПАТ КБ ""Приватбанк""",14360570,юридична особа
Самопоміч,"Київ, вул. Єреванська, буд. 1",70,2020-03-02,TR.1170985_27,Банківські послуги,Інші витрати,245827,Центральний офіс,38558365,Україна,"Плата за розрахункове обслуговування по рахунку № 26006924866928.980 з 2020-03-02 по 2020-03-02 згідно Договору № 2019/КД/291-0048 від 2019-06-18 р, без ПДВ",UA443204780000026006924866928,current,0.80,"АБ ""Укргазбанк""",23697280,юридична особа
Самопоміч,"Київ, вул. Єреванська, буд. 1",70,2020-03-02,TR.1170985,Банківські послуги,Інші витрати,245826,Центральний офіс,38558365,Україна,"Плата за розрахункове обслуговування по рахунку № 26006924866928.980 з 2020-03-02 по 2020-03-02 згідно Договору № 2019/КД/291-0048 від 2019-06-18 р, без ПДВ",UA443204780000026006924866928,current,0.80,"АБ ""Укргазбанк""",23697280,юридична особа
Самопоміч,"Київ, вул. Кирилівська, буд. 102",72,2020-03-02,3359,"Придбання, ремонт офісної техніки та програмного забезпечення (Бухгалтерські програми, Ліга.закон, домени)",Придбання офісної техніки та програмного забезпечення,245825,Центральний офіс,38558365,Україна,"Оплата за обробку даних та перевидачу відкритого ключа та інше, згідно рахунку № ЛСЛ38558365/1 від 2020-03-02 р.",UA443204780000026006924866928,current,92.00,"ТОВ ""Центр сертифікації ключів ""Україна""",36865753,юридична особа
Самопоміч,"Київ, вул. Кирилівська, буд. 102",72,2020-03-02,3358,"Придбання, ремонт офісної техніки та програмного забезпечення (Бухгалтерські програми, Ліга.закон, домени)",Придбання офісної техніки та програмного забезпечення,245824,Центральний офіс,38558365,Україна,"Оплата за обробку даних та перевидачу відкритого ключа та інше, згідно рахунку № ЛСЛ38558365 від 2020-03-02 р.",UA443204780000026006924866928,current,92.00,"ТОВ ""Центр сертифікації ключів ""Україна""",36865753,юридична особа
Самопоміч,"Київ, вул. Єреванська, буд. 1",70,2020-02-28,TR.1170985,Банківські послуги,Інші витрати,245823,Центральний офіс,38558365,Україна,"Плата за розрахункове обслуговування по рахунку № 26006924866928.980 з 2020-02-28 по 2020-02-28 згідно Договору № 2019/КД/291-0048 від 2019-06-18 р, без ПДВ",UA443204780000026006924866928,current,0.80,"АБ ""Укргазбанк""",23697280,юридична особа
Самопоміч,"Київ, вул. Дегтярівська, буд. 53",76,2020-02-28,3357,Послуги зв’язку,Послуги зв’язку,245822,Центральний офіс,38558365,Україна,"Оплата за надані послуги мобільного звʼязку за лютий 2020р., згідно рахунку від 2020-02-29 р. в т.ч. ПДВ 366.67 грн., по договору 7605523",UA443204780000026006924866928,current,2200.00,"ПрАТ ""Київстар""",21673832,юридична особа
Самопоміч,"Київ, вул. Єреванська, буд. 1",70,2020-02-28,TR.1170985,Банківські послуги,Інші витрати,245821,Центральний офіс,38558365,Україна,"Абонлата за розрахункове обслуговування по рахунку № 26006924866928.980 за перiод з 2020-02-01 по 2020-02-29 зг. договору № 2019/КД/291-0048 від 2019-06-18 , без ПДВ",UA443204780000026006924866928,current,60.00,"АБ ""Укргазбанк""",23697280,юридична особа
Самопоміч,"Київ, вул. Михайла Грушевського, буд. 1Д",70,2020-02-27,269,Банківські послуги,Інші витрати,245888,Центральний офіс,38558365,Україна,Перенесення коштiв мiж власними поточними розрахунковими рахунками. Без ПДВ,UA443204780000026006924866928,current,140000.00,"ПАТ КБ ""Приватбанк""",14360570,юридична особа
Самопоміч,"Київ, вул. Єреванська, буд. 1",70,2020-02-27,269,Банківські послуги,Інші витрати,245887,Центральний офіс,38558365,Україна,Перенесення коштів між власними поточними розрахунковими рахунками. Без ПДВ,UA703253210000026001053732835,current,140000.00,"АБ ""Укргазбанк""",23697280,юридична особа
Самопоміч,"Київ, вул. Михайла Грушевського, буд. 1Д",70,2020-02-27,2RO32Q0HNY,Банківські послуги,Інші витрати,245886,Центральний офіс,38558365,Україна,"Комiсiя за виконання платежiв в нацiональнiй валютi, згiдно з вiдкритою офертою банку N б/н вiд 2018-04-23 та тарифiв банку, без ПДВ..",UA703253210000026001053732835,current,3.00,"ПАТ КБ ""Приватбанк""",14360570,юридична особа
Самопоміч,"Київ, вул. Єреванська, буд. 1",70,2020-02-27,TR.1170985_26,Банківські послуги,Інші витрати,245820,Центральний офіс,38558365,Україна,"Плата за розрахункове обслуговування по рахунку № 26006924866928.980 з 2020-02-27 по 2020-02-27 згідно Договору № 2019/КД/291-0048 від 2019-06-18 р, без ПДВ",UA443204780000026006924866928,current,0.80,"АБ ""Укргазбанк""",23697280,юридична особа
Самопоміч,"Київ, вул. Єреванська, буд. 1",70,2020-02-27,TR.1170985_25,Банківські послуги,Інші витрати,245819,Центральний офіс,38558365,Україна,"Плата за розрахункове обслуговування по рахунку № 26006924866928.980 з 2020-02-27 по 2020-02-27 згідно Договору № 2019/КД/291-0048 від 2019-06-18 р, без ПДВ",UA443204780000026006924866928,current,0.80,"АБ ""Укргазбанк""",23697280,юридична особа
Самопоміч,"Київ, вул. Єреванська, буд. 1",70,2020-02-27,TR.1170985_24,Банківські послуги,Інші витрати,245818,Центральний офіс,38558365,Україна,"Плата за розрахункове обслуговування по рахунку № 26006924866928.980 з 2020-02-27 по 2020-02-27 згідно Договору № 2019/КД/291-0048 від 2019-06-18 р, без ПДВ",UA443204780000026006924866928,current,0.80,"АБ ""Укргазбанк""",23697280,юридична особа
Самопоміч,"Київ, вул. Єреванська, буд. 1",70,2020-02-27,TR.1170985_23,Банківські послуги,Інші витрати,245817,Центральний офіс,38558365,Україна,"Плата за розрахункове обслуговування по рахунку № 26006924866928.980 з 2020-02-27 по 2020-02-27 згідно Договору № 2019/КД/291-0048 від 2019-06-18 р, без ПДВ",UA443204780000026006924866928,current,0.80,"АБ ""Укргазбанк""",23697280,юридична особа
Самопоміч,"Київ, вул. Єреванська, буд. 1",70,2020-02-27,TR.1170985_22,Банківські послуги,Інші витрати,245816,Центральний офіс,38558365,Україна,"Плата за розрахункове обслуговування по рахунку № 26006924866928.980 з 2020-02-27 по 2020-02-27 згідно Договору № 2019/КД/291-0048 від 2019-06-18 р, без ПДВ",UA443204780000026006924866928,current,0.80,"АБ ""Укргазбанк""",23697280,юридична особа
Самопоміч,"Київ, вул. Єреванська, буд. 1",70,2020-02-27,TR.1170985_21,Банківські послуги,Інші витрати,245815,Центральний офіс,38558365,Україна,"Плата за розрахункове обслуговування по рахунку № 26006924866928.980 з 2020-02-27 по 2020-02-27 згідно Договору № 2019/КД/291-0048 від 2019-06-18 р, без ПДВ",UA443204780000026006924866928,current,0.80,"АБ ""Укргазбанк""",23697280,юридична особа
Самопоміч,"Київ, вул. Єреванська, буд. 1",70,2020-02-27,TR.1170985_20,Банківські послуги,Інші витрати,245814,Центральний офіс,38558365,Україна,"Плата за розрахункове обслуговування по рахунку № 26006924866928.980 з 2020-02-27 по 2020-02-27 згідно Договору № 2019/КД/291-0048 від 2019-06-18 р, без ПДВ",UA443204780000026006924866928,current,0.80,"АБ ""Укргазбанк""",23697280,юридична особа
Самопоміч,"Київ, вул. Єреванська, буд. 1",70,2020-02-27,TR.1170985_19,Банківські послуги,Інші витрати,245813,Центральний офіс,38558365,Україна,"Плата за розрахункове обслуговування по рахунку № 26006924866928.980 з 2020-02-27 по 2020-02-27 згідно Договору № 2019/КД/291-0048 від 2019-06-18 р, без ПДВ",UA443204780000026006924866928,current,0.80,"АБ ""Укргазбанк""",23697280,юридична особа
Самопоміч,"Київ, вул. Єреванська, буд. 1",70,2020-02-27,TR.1170985_18,Банківські послуги,Інші витрати,245812,Центральний офіс,38558365,Україна,"Плата за розрахункове обслуговування по рахунку № 26006924866928.980 з 2020-02-27 по 2020-02-27 згідно Договору № 2019/КД/291-0048 від 2019-06-18 р, без ПДВ",UA443204780000026006924866928,current,0.80,"АБ ""Укргазбанк""",23697280,юридична особа
Самопоміч,"Київ, вул. Єреванська, буд. 1",70,2020-02-27,TR.1170985_17,Банківські послуги,Інші витрати,245811,Центральний офіс,38558365,Україна,"Плата за розрахункове обслуговування по рахунку № 26006924866928.980 з 2020-02-27 по 2020-02-27 згідно Договору № 2019/КД/291-0048 від 2019-06-18 р, без ПДВ",UA443204780000026006924866928,current,0.80,"АБ ""Укргазбанк""",23697280,юридична особа
Самопоміч,"Київ, вул. Єреванська, буд. 1",70,2020-02-27,TR.1170985,Банківські послуги,Інші витрати,245810,Центральний офіс,38558365,Україна,"Плата за розрахункове обслуговування по рахунку № 26006924866928.980 з 2020-02-27 по 2020-02-27 згідно Договору № 2019/КД/291-0048 від 2019-06-18 р, без ПДВ",UA443204780000026006924866928,current,0.80,"АБ ""Укргазбанк""",23697280,юридична особа
Самопоміч,"Київ, Повітрофлотський просп., 72",76,2020-02-27,3347,Послуги зв’язку,Послуги зв’язку,245809,Центральний офіс,38558365,Україна,"Оплата за телекомунікаційні послуги за січень 2020р., згідно акту наданих послуг від 2020-01-31р. договір № 8566-Т від 31.01.17 р. в т.ч. ПДВ 33.11 грн.",UA443204780000026006924866928,current,198.66,"ТОВ ""Укрком""",22891175,юридична особа
Самопоміч,"Київ, вул. Смоленська, буд. 31/33",76,2020-02-27,3346,Послуги зв’язку,Послуги зв’язку,245808,Центральний офіс,38558365,Україна,"Оплата за телекомунікаційні послуги за січень 2020 р., згідно акту наданих послуг від 31.01.20р. в т.ч. ПДВ 16.00 грн.",UA443204780000026006924866928,current,96.00,"ПрАТ ""Датагруп""",31720260,юридична особа
Самопоміч,"Львівська обл., Львів, вул. Золота, буд. 42",79,2020-02-27,3356,"Оренда будинків і приміщень та експлуатаційні витрати (прибирання, страхування орендованих будинків, охорона, сигналізація, ремонт, вивіз сміття, тощо)",Оренда нерухомості,245807,Центральний офіс,38558365,Україна,"Оплата за розподіл природного газу, згідно рахунку на оплату №60019574 від 04.02.20р. в т.ч. ПДВ 173.58 грн.",UA443204780000026006924866928,current,1041.48,"ПАТ ""Львівгаз""",03349039,юридична особа
Самопоміч,"Львівська обл., Львів, вул. Джохара Дудаєва, буд. 19",72,2020-02-27,3349,"Придбання, ремонт офісної техніки та програмного забезпечення (Бухгалтерські програми, Ліга.закон, домени)",Придбання офісної техніки та програмного забезпечення,245806,Центральний офіс,38558365,Україна,"Оплата за програмну продукцію з технічною підтримкою, згідно акту 280 від 2020-01-31р.",UA443204780000026006924866928,current,5500.00,ТОВ ʼМАКЛАУДʼ,40231242,юридична особа
Самопоміч,"Київ, вул. Лугова, буд. 12",48,2020-02-27,3344,Публікування матеріалів у мережі Інтернет,Реклама в інтернеті,245805,Центральний офіс,38558365,Україна,"Оплата за посл. у сфері інформатизації щодо розміщення користувацької інформ. за грудень 19р.,зг.акту над.посл. №6004355 від 31.12.19р. в т.ч. ПДВ 4299.30 грн.",UA443204780000026006924866928,current,25795.79,ТОВ 'Софтпром Солюшинз',38282502,юридична особа
Самопоміч,"Київ, вул. Богдана Хмельницького, буд. 52Б",81,2020-02-27,3345,Аудит,"Гонорари, в тому числі за надані консультаційні послуги",245804,Центральний офіс,38558365,Україна,"Оплата за ІІ-й етап аудиторських послуг з виконання зовнішнього незалежного аудиту, згідно рахунку на оплату №41 від 05.02.20р. в т.ч. ПДВ 6458.33 грн.",UA443204780000026006924866928,current,38750.00,"ТОВ ""Аудиторська фірма “ПКФ Аудит-фінанси”",34619277,юридична особа
Самопоміч,"Київ, вул. Єреванська, буд. 1",70,2020-02-27,3352,Банківські послуги,Інші витрати,245803,Центральний офіс,38558365,Україна,Банківська комісія за виплату зарплати та відпускних працівників за лютий 2020 р.,UA443204780000026006924866928,current,170.01,"АБ ""Укргазбанк""",23697280,юридична особа
Самопоміч,"Львівська обл., Львів, вул. Конотопська, буд. 6",63,2020-02-27,3355,Податок на доходи,Податкові платежі,245802,Центральний офіс,38558365,Україна,*;101;38558365; сплата ПДФО із зарплати та відпускних працівників за лютий 2020 р.;;;11010100,UA443204780000026006924866928,current,7602.91,УДКСУ у Франківському районі м. Львова,37965138,юридична особа
Самопоміч,"Львівська обл., Львів, вул. Стрийська, буд. 35",62,2020-02-27,3351,Сплата ЄСВ,Податкові платежі,245801,Центральний офіс,38558365,Україна,*;101;38558365; сплата єдиного соціального внеску 22% із зарплати і відпускних працівників за лютий 2020р .,UA443204780000026006924866928,current,9560.99,ГОЛОВНЕ УПРАВЛІННЯ ДФС У ЛЬВІВСЬКІЙ ОБЛАСТІ,43143039,юридична особа
Самопоміч,"Львівська обл., Львів, вул. Конотопська, буд. 6",61,2020-02-27,3354,Військовий збір,Податкові платежі,245800,Центральний офіс,38558365,Україна,*;101;38558365; сплата військового збору із зарплати та відпускних працівників за лютий 2020 р.;;; 11011000,UA443204780000026006924866928,current,633.58,УДКСУ у Франківському районі м. Львова,37965138,юридична особа
Самопоміч,"Львівська обл., Львів",84,2020-02-27,3353,"Заробітна плата, премії","Заробітна плата, лікарняні, вагітності, відрядження, компенсації",245744,Центральний офіс,38558365,Україна,Зарплата,UA443204780000026006924866928,current,15952.72,Дунаєвська Ольга Євстахіївна,,фізична особа
Самопоміч,"Львівська обл., Львів",84,2020-02-27,3353,"Заробітна плата, премії","Заробітна плата, лікарняні, вагітності, відрядження, компенсації",245743,Центральний офіс,38558365,Україна,Зарплата,UA443204780000026006924866928,current,10505.25,Кокорузь Марія Михайлівна,,фізична особа
Самопоміч,"Львівська обл., Львів",84,2020-02-27,3353,"Заробітна плата, премії","Заробітна плата, лікарняні, вагітності, відрядження, компенсації",245742,Центральний офіс,38558365,Україна,Зарплата,UA443204780000026006924866928,current,7543.93,Васів Наталія Юріївна,,фізична особа
Самопоміч,"Львівська обл., Львів, вул. Вернадського, буд. 8",48,2020-02-27,3350,Публікування матеріалів у мережі Інтернет,Реклама в інтернеті,245732,Центральний офіс,38558365,Україна,"Оплата за послуги у сфері інформатизації, згідно рахунку на оплату №20-98-2 від 2020-02-27р.",UA443204780000026006924866928,current,6450.00,Петришин Роман Богданович,,фізична особа
Самопоміч,"Львівська обл., Львів, вул. Гіпсова, буд. 54",78,2020-02-27,3348,Оренда обладнання та технічних засобів,Оренда обладнання та технічних засобів,245731,Центральний офіс,38558365,Україна,"Оплата за оренду принтера НР та покопійне обслуговування, згідно акту наданих послуг №315 від 2020-02-05р.",UA443204780000026006924866928,current,1870.75,Кіхтан Андрій Володимирович,,фізична особа
Самопоміч,"Київ, вул. Єреванська, буд. 1",70,2020-02-21,TR.1170985,Банківські послуги,Інші витрати,245799,Центральний офіс,38558365,Україна,"Плата за розрахункове обслуговування по рахунку № 26006924866928.980 з 2020-02-21 по 2020-02-21 згідно Договору № 2019/КД/291-0048 від 2019-06-18 р, без ПДВ",UA443204780000026006924866928,current,0.80,"АБ ""Укргазбанк""",23697280,юридична особа
Самопоміч,"Київ, вул. Михайла Грушевського, буд. 1Д",70,2020-02-21,3343,Банківські послуги,Інші витрати,245798,Центральний офіс,38558365,Україна,Перенесення коштiв мiж власними поточними розрахунковими рахунками. Без ПДВ,UA443204780000026006924866928,current,600.00,"ПАТ КБ ""Приватбанк""",14360570,юридична особа
Самопоміч,"Київ, вул. Єреванська, буд. 1",70,2020-02-21,3343,Банківські послуги,Інші витрати,245797,Центральний офіс,38558365,Україна,Перенесення коштiв мiж власними поточними розрахунковими рахунками. Без ПДВ,UA703253210000026001053732835,current,600.00,"АБ ""Укргазбанк""",23697280,юридична особа
Самопоміч,"Львівська обл., Червоноград",65,2020-02-21,268,Перерахування внесків приватних донорів до держбюджету,Перерахування внесків приватних донорів до держбюджету,245726,Центральний офіс,38558365,Україна,"повернення зг. ст. 15 ЗУ ""Про полiтичнi партiї в Українi"" (помилкове призначення платежу вiд 19.02.20) донорам",UA703253210000026001053732835,current,610.00,Фартушок Дмитро Ігорович,,фізична особа
Самопоміч,"Київ, вул. Михайла Грушевського, буд. 1Д",70,2020-02-20,267,Банківські послуги,Інші витрати,245885,Центральний офіс,38558365,Україна,Перенесення коштiв мiж власними поточними розрахунковими рахунками. Без ПДВ,UA443204780000026006924866928,current,2850.00,"ПАТ КБ ""Приватбанк""",14360570,юридична особа
Самопоміч,"Київ, вул. Єреванська, буд. 1",70,2020-02-20,267,Банківські послуги,Інші витрати,245884,Центральний офіс,38558365,Україна,Перенесення коштів між власними поточними розрахунковими рахунками. Без ПДВ,UA703253210000026001053732835,current,2850.00,"АБ ""Укргазбанк""",23697280,юридична особа
Самопоміч,"Київ, вул. Михайла Грушевського, буд. 1Д",70,2020-02-20,2KO31VD0JY,Банківські послуги,Інші витрати,245883,Центральний офіс,38558365,Україна,"Комiсiя за виконання платежiв в нацiональнiй валютi, згiдно з вiдкритою офертою банку N б/н вiд 2018-04-23 та тарифiв банку, без ПДВ..",UA703253210000026001053732835,current,3.00,"ПАТ КБ ""Приватбанк""",14360570,юридична особа
Самопоміч,"Львівська обл., Львів, вул. Джохара Дудаєва, буд. 19",72,2020-02-20,3340,"Придбання, ремонт офісної техніки та програмного забезпечення (Бухгалтерські програми, Ліга.закон, домени)",Придбання офісної техніки та програмного забезпечення,245796,Центральний офіс,38558365,Україна,"Часткова оплата за програмну продукцію з технічною підтримкою, згідно акту 280 від 2020-01-31р.",UA443204780000026006924866928,current,6086.96,ТОВ ʼМАКЛАУДʼ,40231242,юридична особа
Самопоміч,"Київ, вул. Єреванська, буд. 1",70,2020-02-20,TR.1170985_16,Банківські послуги,Інші витрати,245795,Центральний офіс,38558365,Україна,"Плата за розрахункове обслуговування по рахунку № 26006924866928.980 з 2020-02-20 по 2020-02-20 згідно Договору № 2019/КД/291-0048 від 2019-06-18 р, без ПДВ",UA443204780000026006924866928,current,0.80,"АБ ""Укргазбанк""",23697280,юридична особа
Самопоміч,"Київ, вул. Єреванська, буд. 1",70,2020-02-20,TR.1170985_15,Банківські послуги,Інші витрати,245794,Центральний офіс,38558365,Україна,"Плата за розрахункове обслуговування по рахунку № 26006924866928.980 з 2020-02-20 по 2020-02-20 згідно Договору № 2019/КД/291-0048 від 2019-06-18 р, без ПДВ",UA443204780000026006924866928,current,0.80,"АБ ""Укргазбанк""",23697280,юридична особа
Самопоміч,"Київ, вул. Єреванська, буд. 1",70,2020-02-20,TR.1170985,Банківські послуги,Інші витрати,245793,Центральний офіс,38558365,Україна,"Плата за розрахункове обслуговування по рахунку № 26006924866928.980 з 2020-02-20 по 2020-02-20 згідно Договору № 2019/КД/291-0048 від 2019-06-18 р, без ПДВ",UA443204780000026006924866928,current,0.80,"АБ ""Укргазбанк""",23697280,юридична особа
Самопоміч,"Сумська обл., Конотоп, вул. Братів Лузанів, буд. 48",79,2020-02-20,3341,"Оренда будинків і приміщень та експлуатаційні витрати (прибирання, страхування орендованих будинків, охорона, сигналізація, ремонт, вивіз сміття, тощо)",Оренда нерухомості,245792,Центральний офіс,38558365,Україна,"Оплата за оренду нежитлового приміщення за січень 2020р., згідно рахунку №17 від 2020-02-11 року",UA443204780000026006924866928,current,2037.40,Конотопське УДКСУв Сумській обл.,37784555,юридична особа
Самопоміч,"Сумська обл., Конотоп, вул. Братів Лузанів, буд. 48",79,2020-02-20,3342,"Оренда будинків і приміщень та експлуатаційні витрати (прибирання, страхування орендованих будинків, охорона, сигналізація, ремонт, вивіз сміття, тощо)",Оренда нерухомості,245791,Центральний офіс,38558365,Україна,"Оплата за електроенергію, згідно рахунку №121708/10 від 2020-02-14 року",UA443204780000026006924866928,current,203.70,Конотопське УДКСУв Сумській обл.,37784555,юридична особа
Самопоміч,"Київ, вул. Михайла Грушевського, буд. 1Д",70,2020-02-19,266,Банківські послуги,Інші витрати,245882,Центральний офіс,38558365,Україна,Перенесення коштiв мiж власними поточними розрахунковими рахунками. Без ПДВ,UA443204780000026006924866928,current,6900.00,"ПАТ КБ ""Приватбанк""",14360570,юридична особа
Самопоміч,"Київ, вул. Єреванська, буд. 1",70,2020-02-19,266,Банківські послуги,Інші витрати,245881,Центральний офіс,38558365,Україна,Перенесення коштів між власними поточними розрахунковими рахунками. Без ПДВ,UA703253210000026001053732835,current,6900.00,"АБ ""Укргазбанк""",23697280,юридична особа
Самопоміч,"Київ, вул. Михайла Грушевського, буд. 1Д",70,2020-02-19,2JO31PLEVY,Банківські послуги,Інші витрати,245880,Центральний офіс,38558365,Україна,"Комiсiя за виконання платежiв в нацiональнiй валютi, згiдно з вiдкритою офертою банку N б/н вiд 2018-04-23 та тарифiв банку, без ПДВ..",UA703253210000026001053732835,current,3.00,"ПАТ КБ ""Приватбанк""",14360570,юридична особа
Самопоміч,"Хмельницька обл., Волочиський р-н, Волочиськ, вул. Незалежності, буд. 14",48,2020-02-19,265,Публікування матеріалів у мережі Інтернет,Реклама в інтернеті,245734,Центральний офіс,38558365,Україна,"Оплата за послуги з обслуговування веб-сайту, згiдно рахунку N14/02/20-1 вiд 14.02.20р.",UA703253210000026001053732835,current,5980.00,Страз Оксана Антонівна,,фізична особа
Самопоміч,"Київ, вул. Братиславська, буд. 14Б",79,2020-02-18,2,"Оренда будинків і приміщень та експлуатаційні витрати (прибирання, страхування орендованих будинків, охорона, сигналізація, ремонт, вивіз сміття, тощо)",Оренда нерухомості,245902,Барська районна організація,39919455,Вінницька область,"За оренду нежитлового приміщення зг. Дог. № 01/04-2019 від 2019-04-01р., без ПДВ.",UA453020760000026000171311565,current,1020.00,"ТОВ ""Вектор БМ""",42258575,юридична особа
Самопоміч,"Київ, вул. Єреванська, буд. 1",70,2020-02-18,TR.1170985,Банківські послуги,Інші витрати,245790,Центральний офіс,38558365,Україна,"Плата за розрахункове обслуговування по рахунку № 26006924866928.980 з 2020-02-18 по 2020-02-18 згідно Договору № 2019/КД/291-0048 від 2019-06-18 р, без ПДВ",UA443204780000026006924866928,current,0.80,"АБ ""Укргазбанк""",23697280,юридична особа
Самопоміч,"Львівська обл., Львів, вул. Джорджа Вашингтона, буд. 4А",74,2020-02-18,3339,"Придбання канцтоварів, паперу, інших предметів і матеріалів, а також госп товари",Придбання канцтоварів та госп. товарів,245730,Центральний офіс,38558365,Україна,"Оплата за обкладинки, згідно видаткової накладної №РН-02/01 від 13.02.20р.",UA443204780000026006924866928,current,2000.00,Сокура Тетяна Олексіївна,,фізична особа
Самопоміч,"Київ, вул. Єреванська, буд. 1",70,2020-02-14,TR.1170985,Банківські послуги,Інші витрати,245789,Центральний офіс,38558365,Україна,"Плата за розрахункове обслуговування по рахунку № 26006924866928.980 з 2020-02-14 по 2020-02-14 згідно Договору № 2019/КД/291-0048 від 2019-06-18 р, без ПДВ",UA443204780000026006924866928,current,0.80,"АБ ""Укргазбанк""",23697280,юридична особа
Самопоміч,"Київ, вул. Дегтярівська, буд. 53",76,2020-02-14,3338,Послуги зв’язку,Послуги зв’язку,245788,Центральний офіс,38558365,Україна,"Оплата за надані послуги мобільного звʼязку за січень 2020р., згідно рахунку № 41-325118 від 2020-01-31 р. в т.ч. ПДВ 252,55 грн.",UA443204780000026006924866928,current,1610.00,"ПрАТ ""Київстар""",21673832,юридична особа
Самопоміч,"Київ, вул. Єреванська, буд. 1",70,2020-02-13,3337,Банківські послуги,Інші витрати,245787,Центральний офіс,38558365,Україна,Банківська комісія за виплату допомоги по вагітності та пологам працівника,UA443204780000026006924866928,current,86.37,"АБ ""Укргазбанк""",23697280,юридична особа
Самопоміч,"Івано-Франківська обл., Богородчанський р-н, Богородчани",83,2020-02-13,3336,"Виплати працівникам (не зарплата): лікарняні, вагітності, відрядження, компенсації ","Заробітна плата, лікарняні, вагітності, відрядження, компенсації",245735,Центральний офіс,38558365,Україна,допомога по вагітності та пологам,UA573204780000026045903290725,current,17273.34,Новицька Світлана Богданівна,,фізична особа
Самопоміч,"Київ, вул. Єреванська, буд. 1",70,2020-02-12,TR.1170985_14,Банківські послуги,Інші витрати,245786,Центральний офіс,38558365,Україна,"Плата за розрахункове обслуговування по рахунку № 26006924866928.980 з 2020-02-12 по 2020-02-12 згідно Договору № 2019/КД/291-0048 від 2019-06-18 р, без ПДВ",UA443204780000026006924866928,current,0.80,"АБ ""Укргазбанк""",23697280,юридична особа
Самопоміч,"Київ, вул. Єреванська, буд. 1",70,2020-02-12,TR.1170985_13,Банківські послуги,Інші витрати,245785,Центральний офіс,38558365,Україна,"Плата за розрахункове обслуговування по рахунку № 26006924866928.980 з 2020-02-12 по 2020-02-12 згідно Договору № 2019/КД/291-0048 від 2019-06-18 р, без ПДВ",UA443204780000026006924866928,current,0.80,"АБ ""Укргазбанк""",23697280,юридична особа
Самопоміч,"Київ, вул. Єреванська, буд. 1",70,2020-02-12,TR.1170985_12,Банківські послуги,Інші витрати,245784,Центральний офіс,38558365,Україна,"Плата за розрахункове обслуговування по рахунку № 26006924866928.980 з 2020-02-12 по 2020-02-12 згідно Договору № 2019/КД/291-0048 від 2019-06-18 р, без ПДВ",UA443204780000026006924866928,current,0.80,"АБ ""Укргазбанк""",23697280,юридична особа
Самопоміч,"Київ, вул. Єреванська, буд. 1",70,2020-02-12,TR.1170985_11,Банківські послуги,Інші витрати,245783,Центральний офіс,38558365,Україна,"Плата за розрахункове обслуговування по рахунку № 26006924866928.980 з 2020-02-12 по 2020-02-12 згідно Договору № 2019/КД/291-0048 від 2019-06-18 р, без ПДВ",UA443204780000026006924866928,current,0.80,"АБ ""Укргазбанк""",23697280,юридична особа
Самопоміч,"Київ, вул. Єреванська, буд. 1",70,2020-02-12,TR.1170985,Банківські послуги,Інші витрати,245782,Центральний офіс,38558365,Україна,"Плата за розрахункове обслуговування по рахунку № 26006924866928.980 з 2020-02-12 по 2020-02-12 згідно Договору № 2019/КД/291-0048 від 2019-06-18 р, без ПДВ",UA443204780000026006924866928,current,0.80,"АБ ""Укргазбанк""",23697280,юридична особа
Самопоміч,"Львівська обл., Львів, вул. Іларіона Свєнціцького, буд. 1",76,2020-02-12,3335,Послуги зв’язку,Послуги зв’язку,245781,Центральний офіс,38558365,Україна,"Оплата за телекомунікаційні послуги за січень 2020 р по дог. №168754, згідно акту наданих послуг від 2020-01-31 р. в т.ч. ПДВ 105.50 грн.",UA443204780000026006924866928,current,633.00,"ДП ""НТЦ ""Українська академічна і дослідницька мережа"" Інституту фізики конденсованих систем НАН України""",30275262,юридична особа
Самопоміч,"Київ, Повітрофлотський просп., 72",76,2020-02-12,3331,Послуги зв’язку,Послуги зв’язку,245780,Центральний офіс,38558365,Україна,"Оплата за телекомунікаційні послуги за грудень 2019р., згідно акту наданих послуг від 2019-12-31р. договір № 8566-Т від 31.01.17 р. в т.ч. ПДВ 31.92 грн.",UA443204780000026006924866928,current,191.51,"ТОВ ""Укрком""",22891175,юридична особа
Самопоміч,"Полтавська обл., Полтава, вул. Європейська, буд. 57",80,2020-02-12,3333,"Транспортні послуги (квитки, пасажирські перевезення і т.д.)","Транспортні послуги (квитки, пасажирські перевезення і т.д.)",245779,Центральний офіс,38558365,Україна,"Оплата за організацію перевезення відправлень, згідно акту наданих послуг № НП-003231297 від 2020-01-20 р. в т.ч. ПДВ 297.72 грн.",UA443204780000026006924866928,current,1786.30,"ТОВ ""Нова пошта""",31316718,юридична особа
Самопоміч,"Полтавська обл., Полтава, вул. Європейська, буд. 57",80,2020-02-12,3334,"Транспортні послуги (квитки, пасажирські перевезення і т.д.)","Транспортні послуги (квитки, пасажирські перевезення і т.д.)",245778,Центральний офіс,38558365,Україна,"Оплата за організацію перевезення відправлень, згідно акту наданих послуг № НП-003208374 від 2020-01-10 р. в т.ч. ПДВ 81.79 грн.",UA443204780000026006924866928,current,490.75,"ТОВ ""Нова пошта""",31316718,юридична особа
Самопоміч,"Львівська обл., Львів, вул. Гіпсова, буд. 54",78,2020-02-12,3332,Оренда обладнання та технічних засобів,Оренда обладнання та технічних засобів,245729,Центральний офіс,38558365,Україна,"Оплата за оренду принтера НР та покопійне обслуговування, згідно акту наданих послуг №116 від 2020-01-14р.",UA443204780000026006924866928,current,1445.25,Кіхтан Андрій Володимирович,,фізична особа
Самопоміч,"Сумська обл., Конотоп, вул. Братів Лузанів, буд. 48",60,2020-02-11,264,Інші податки,Податкові платежі,245879,Центральний офіс,38558365,Україна,"Оплата за компенсацiю податку на землю за сiчень 2020р., згiдно рахунку N100 вiд 2020-02-04 року",UA703253210000026001053732835,current,150.65,Конотопське УДКСУв Сумській обл.,37784555,юридична особа
Самопоміч,"Київ, вул. Михайла Грушевського, буд. 1Д",70,2020-02-11,2BO30PEGDY,Банківські послуги,Інші витрати,245878,Центральний офіс,38558365,Україна,"Комiсiя за виконання платежiв в нацiональнiй валютi, згiдно з вiдкритою офертою банку N б/н вiд 2018-04-23 та тарифiв банку, без ПДВ.",UA703253210000026001053732835,current,3.00,"ПАТ КБ ""Приватбанк""",14360570,юридична особа
Самопоміч,"Сумська обл., Конотоп, вул. Братів Лузанів, буд. 48",79,2020-02-10,263,"Оренда будинків і приміщень та експлуатаційні витрати (прибирання, страхування орендованих будинків, охорона, сигналізація, ремонт, вивіз сміття, тощо)",Оренда нерухомості,245877,Центральний офіс,38558365,Україна,"Оплата за вiдшкодування послуг теплопостачання за сiчень 2020р., згiдно рахунку N95 вiд 2020-02-03р. в т.ч. ПДВ 549,34 грн",UA703253210000026001053732835,current,3296.06,Конотопське УДКСУв Сумській обл.,37784555,юридична особа
Самопоміч,"Київ, вул. Михайла Грушевського, буд. 1Д",70,2020-02-10,2AO30KOYYY,Банківські послуги,Інші витрати,245876,Центральний офіс,38558365,Україна,"Комiсiя за виконання платежiв в нацiональнiй валютi, згiдно з вiдкритою офертою банку N б/н вiд 2018-04-23 та тарифiв банку, без ПДВ.",UA703253210000026001053732835,current,3.00,"ПАТ КБ ""Приватбанк""",14360570,юридична особа
Самопоміч,"Київ, вул. Михайла Грушевського, буд. 1Д",70,2020-02-07,1LHI4N0009,Банківські послуги,Інші витрати,245875,Центральний офіс,38558365,Україна,Погашення заборгованостi за розрахунково-касове обслуговування згiдно угоди РКО N б/н вiд 2018-04-23,UA703253210000026001053732835,current,76.24,"ПАТ КБ ""Приватбанк""",14360570,юридична особа
Самопоміч,"Вінницька обл., Вінниця, вул. Соборна, буд. 71",70,2020-02-03,800608403,Банківські послуги,Інші витрати,245901,Барська районна організація,39919455,Вінницька область,Коміс.за розрах.обсл. рахунку 26000171311565 з 01-01-2020 по 31-01-2020. Без НДС,UA453020760000026000171311565,current,100.00,"Вінницька обласна філія АТ ""Ощадбанк""",09302607,юридична особа
Самопоміч,"Вінницька обл., Вінниця, вул. Соборна, буд. 71",70,2020-02-03,80779873,Банківські послуги,Інші витрати,245900,Барська районна організація,39919455,Вінницька область,Списання щомісячної плати за обслуговування ТП Моя громада за за січень 2020 р.,UA453020760000026000171311565,current,99.00,"Вінницька обласна філія АТ ""Ощадбанк""",09302607,юридична особа
Самопоміч,"Київ, вул. Михайла Грушевського, буд. 1Д",70,2020-02-03,AS01vx9z9p,Банківські послуги,Інші витрати,245874,Центральний офіс,38558365,Україна,"Комісія за обслуговування рахунку за січень 2020 р. згідно договору банківського рахунку від 2018-04-23, без ПДВ.",UA703253210000026001053732835,current,23.76,"ПАТ КБ ""Приватбанк""",14360570,юридична особа
Самопоміч,"Київ, вул. Єреванська, буд. 1",70,2020-01-31,261,Банківські послуги,Інші витрати,245873,Центральний офіс,38558365,Україна,Перенесення коштів між власними поточними розрахунковими рахунками. Без ПДВ,UA703253210000026001053732835,current,30000.00,"АБ ""Укргазбанк""",23697280,юридична особа
Самопоміч,"Київ, вул. Михайла Грушевського, буд. 1Д",70,2020-01-31,261,Банківські послуги,Інші витрати,245872,Центральний офіс,38558365,Україна,Перенесення коштiв мiж власними поточними розрахунковими рахунками. Без ПДВ,UA443204780000026006924866928,current,30000.00,"ПАТ КБ ""Приватбанк""",14360570,юридична особа
Самопоміч,"Київ, вул. Михайла Грушевського, буд. 1Д",70,2020-01-31,1VO2ZE2A3Y,Банківські послуги,Інші витрати,245871,Центральний офіс,38558365,Україна,"Комiсiя за виконання платежiв в нацiональнiй валютi, згiдно з вiдкритою офертою банку N б/н вiд 2018-04-23 та тарифiв банку, без ПДВ.",UA703253210000026001053732835,current,3.00,"ПАТ КБ ""Приватбанк""",14360570,юридична особа
Самопоміч,"Київ, вул. Єреванська, буд. 1",70,2020-01-31,TR.1170985_10,Банківські послуги,Інші витрати,245777,Центральний офіс,38558365,Україна,"Плата за розрахункове обслуговування по рахунку № 26006924866928.980 з 2020-01-31 по 2020-01-31 згідно Договору № 2019/КД/291-0048 від 2019-06-18 р, без ПДВ",UA443204780000026006924866928,current,0.80,"АБ ""Укргазбанк""",23697280,юридична особа
Самопоміч,"Київ, вул. Єреванська, буд. 1",70,2020-01-31,TR.1170985_9,Банківські послуги,Інші витрати,245776,Центральний офіс,38558365,Україна,"Плата за розрахункове обслуговування по рахунку № 26006924866928.980 з 2020-01-31 по 2020-01-31 згідно Договору № 2019/КД/291-0048 від 2019-06-18 р, без ПДВ",UA443204780000026006924866928,current,0.80,"АБ ""Укргазбанк""",23697280,юридична особа
Самопоміч,"Київ, вул. Єреванська, буд. 1",70,2020-01-31,TR.1170985_8,Банківські послуги,Інші витрати,245775,Центральний офіс,38558365,Україна,"Плата за розрахункове обслуговування по рахунку № 26006924866928.980 з 2020-01-31 по 2020-01-31 згідно Договору № 2019/КД/291-0048 від 2019-06-18 р, без ПДВ",UA443204780000026006924866928,current,0.80,"АБ ""Укргазбанк""",23697280,юридична особа
Самопоміч,"Київ, вул. Єреванська, буд. 1",70,2020-01-31,TR.1170985,Банківські послуги,Інші витрати,245774,Центральний офіс,38558365,Україна,"Плата за розрахункове обслуговування по рахунку № 26006924866928.980 з 2020-01-31 по 2020-01-31 згідно Договору № 2019/КД/291-0048 від 2019-06-18 р, без ПДВ",UA443204780000026006924866928,current,0.80,"АБ ""Укргазбанк""",23697280,юридична особа
Самопоміч,"Київ, вул. Єреванська, буд. 1",70,2020-01-31,3329,Банківські послуги,Інші витрати,245773,Центральний офіс,38558365,Україна,Банківська комісія за виплату зарплати працівників за січень 2020 р.,UA443204780000026006924866928,current,83.41,"АБ ""Укргазбанк""",23697280,юридична особа
Самопоміч,"Київ, вул. Єреванська, буд. 1",70,2020-01-31,TR.1170985,Банківські послуги,Інші витрати,245772,Центральний офіс,38558365,Україна,"Абонлата за розрахункове обслуговування по рахунку № 26006924866928.980 за перiод з 2020-01-01 по 2020-01-31 зг. договору № 2019/КД/291-0048 від 2019-06-18 , без ПДВ",UA443204780000026006924866928,current,60.00,"АБ ""Укргазбанк""",23697280,юридична особа
Самопоміч,"Львівська обл., Львів, вул. Конотопська, буд. 6",63,2020-01-31,3326,Податок на доходи,Податкові платежі,245771,Центральний офіс,38558365,Україна,*;101;38558365; сплата ПДФО із зарплати працівників за січень 2020 р.;;;11010100,UA443204780000026006924866928,current,3730.35,УДКСУ у Франківському районі м. Львова,37965138,юридична особа
Самопоміч,"Львівська обл., Львів, вул. Стрийська, буд. 35",62,2020-01-31,3330,Сплата ЄСВ,Податкові платежі,245770,Центральний офіс,38558365,Україна,*;101;38558365; сплата єдиного соціального внеску 22% із допомоги по вагітності та пологам,UA443204780000026006924866928,current,3800.12,ГОЛОВНЕ УПРАВЛІННЯ ДФС У ЛЬВІВСЬКІЙ ОБЛАСТІ,43143039,юридична особа
Самопоміч,"Львівська обл., Львів, вул. Стрийська, буд. 35",62,2020-01-31,3325,Сплата ЄСВ,Податкові платежі,245769,Центральний офіс,38558365,Україна,*;101;38558365; сплата єдиного соціального внеску 22% із зарплати працівників за січень 2020р .,UA443204780000026006924866928,current,4559.32,ГОЛОВНЕ УПРАВЛІННЯ ДФС У ЛЬВІВСЬКІЙ ОБЛАСТІ,43143039,юридична особа
Самопоміч,"Львівська обл., Львів, вул. Конотопська, буд. 6",61,2020-01-31,3327,Військовий збір,Податкові платежі,245768,Центральний офіс,38558365,Україна,*;101;38558365; сплата військового збору із зарплати працівників за січень 2020 р.;;; 11011000,UA443204780000026006924866928,current,310.86,УДКСУ у Франківському районі м. Львова,37965138,юридична особа
Самопоміч,"Львівська обл., Львів",84,2020-01-31,3328,"Заробітна плата, премії","Заробітна плата, лікарняні, вагітності, відрядження, компенсації",245741,Центральний офіс,38558365,Україна,Зарплата,UA443204780000026006924866928,current,8909.82,Дунаєвська Ольга Євстахіївна,,фізична особа
Самопоміч,"Львівська обл., Львів",84,2020-01-31,3328,"Заробітна плата, премії","Заробітна плата, лікарняні, вагітності, відрядження, компенсації",245740,Центральний офіс,38558365,Україна,Зарплата,UA443204780000026006924866928,current,5502.74,Кокорузь Марія Михайлівна,,фізична особа
Самопоміч,"Львівська обл., Львів",84,2020-01-31,3328,"Заробітна плата, премії","Заробітна плата, лікарняні, вагітності, відрядження, компенсації",245739,Центральний офіс,38558365,Україна,Зарплата,UA443204780000026006924866928,current,2270.39,Васів Наталія Юріївна,,фізична особа
Самопоміч,"Київ, вул. Єреванська, буд. 1",70,2020-01-29,TR.1170985_7,Банківські послуги,Інші витрати,245767,Центральний офіс,38558365,Україна,"Плата за розрахункове обслуговування по рахунку № 26006924866928.980 з 2020-01-29 по 2020-01-29 згідно Договору № 2019/КД/291-0048 від 2019-06-18 р, без ПДВ",UA443204780000026006924866928,current,0.80,"АБ ""Укргазбанк""",23697280,юридична особа
Самопоміч,"Київ, вул. Єреванська, буд. 1",70,2020-01-29,TR.1170985_6,Банківські послуги,Інші витрати,245766,Центральний офіс,38558365,Україна,"Плата за розрахункове обслуговування по рахунку № 26006924866928.980 з 2020-01-29 по 2020-01-29 згідно Договору № 2019/КД/291-0048 від 2019-06-18 р, без ПДВ",UA443204780000026006924866928,current,0.80,"АБ ""Укргазбанк""",23697280,юридична особа
Самопоміч,"Київ, вул. Єреванська, буд. 1",70,2020-01-29,TR.1170985,Банківські послуги,Інші витрати,245765,Центральний офіс,38558365,Україна,"Плата за розрахункове обслуговування по рахунку № 26006924866928.980 з 2020-01-29 по 2020-01-29 згідно Договору № 2019/КД/291-0048 від 2019-06-18 р, без ПДВ",UA443204780000026006924866928,current,0.80,"АБ ""Укргазбанк""",23697280,юридична особа
Самопоміч,"Київ, вул. Смоленська, буд. 31/33",76,2020-01-29,3322,Послуги зв’язку,Послуги зв’язку,245764,Центральний офіс,38558365,Україна,"Оплата за телекомунікаційні послуги за грудень 2019 р., згідно акту наданих послуг від 31.12.19р. в т.ч. ПДВ 16.00 грн.",UA443204780000026006924866928,current,96.00,"ПрАТ ""Датагруп""",31720260,юридична особа
Самопоміч,"Львівська обл., Червоноград, вул. Коновальця, буд. 3",79,2020-01-29,3324,"Оренда будинків і приміщень та експлуатаційні витрати (прибирання, страхування орендованих будинків, охорона, сигналізація, ремонт, вивіз сміття, тощо)",Оренда нерухомості,245763,Центральний офіс,38558365,Україна,"Оплата за послуги оренди приміщення у листопаді 2019 р., згідно акту № 84 від 2019-11-30 р. в т.ч. ПДВ 49.57 грн.",UA443204780000026006924866928,current,297.39,"КП ""Червонограджитлокомунсервіс""",31616100,юридична особа
Самопоміч,"Львівська обл., Червоноград, вул. Коновальця, буд. 3",79,2020-01-29,3323,"Оренда будинків і приміщень та експлуатаційні витрати (прибирання, страхування орендованих будинків, охорона, сигналізація, ремонт, вивіз сміття, тощо)",Оренда нерухомості,245762,Центральний офіс,38558365,Україна,"Оплата за послуги оренди приміщення у грудень 2019 р., згідно акту № 84 від 2019-12-31 р. в т.ч. ПДВ 49,62 грн.",UA443204780000026006924866928,current,301.61,"КП ""Червонограджитлокомунсервіс""",31616100,юридична особа
Самопоміч,"Київ, вул. Братиславська, буд. 14Б",79,2020-01-24,1,"Оренда будинків і приміщень та експлуатаційні витрати (прибирання, страхування орендованих будинків, охорона, сигналізація, ремонт, вивіз сміття, тощо)",Оренда нерухомості,245899,Барська районна організація,39919455,Вінницька область,"Оплата за оренду нежитлового приміщення згідно договору від 01/04-2019 від 2019-04-01р., без ПДВ.",UA453020760000026000171311565,current,1020.00,"ТОВ ""Вектор БМ""",42258575,юридична особа
Самопоміч,"Сумська обл., Конотоп, вул. Братів Лузанів, буд. 48",79,2020-01-20,260,"Оренда будинків і приміщень та експлуатаційні витрати (прибирання, страхування орендованих будинків, охорона, сигналізація, ремонт, вивіз сміття, тощо)",Оренда нерухомості,245870,Центральний офіс,38558365,Україна,"Оплата за оренду нежитлового примiщення за грудень 2019р., згiдно рахунку N9 вiд 13.01.20р.",UA703253210000026001053732835,current,2033.40,Конотопське УДКСУв Сумській обл.,37784555,юридична особа
Самопоміч,"Київ, вул. Михайла Грушевського, буд. 1Д",70,2020-01-20,1KO2Y0IT4Y,Банківські послуги,Інші витрати,245869,Центральний офіс,38558365,Україна,"Комiсiя за виконання платежiв в нацiональнiй валютi, згiдно з вiдкритою офертою банку N б/н вiд 2018-04-23 та тарифiв банку, без ПДВ.",UA703253210000026001053732835,current,3.00,"ПАТ КБ ""Приватбанк""",14360570,юридична особа
Самопоміч,"Київ, вул. Єреванська, буд. 1",70,2020-01-20,TR.1170985,Банківські послуги,Інші витрати,245761,Центральний офіс,38558365,Україна,"Плата за розрахункове обслуговування по рахунку № 26006924866928.980 з 2020-01-20 по 2020-01-20 згідно Договору № 2019/КД/291-0048 від 2019-06-18 р, без ПДВ",UA443204780000026006924866928,current,0.80,"АБ ""Укргазбанк""",23697280,юридична особа
Самопоміч,"Львівська обл., Львів, вул. Джохара Дудаєва, буд. 19",72,2020-01-20,3321,"Придбання, ремонт офісної техніки та програмного забезпечення (Бухгалтерські програми, Ліга.закон, домени)",Придбання офісної техніки та програмного забезпечення,245760,Центральний офіс,38558365,Україна,"Оплата за програмну продукцію з технічною підтримкою, згідно акту №3156 від 2019-12-31р.",UA443204780000026006924866928,current,10942.47,ТОВ ʼМАКЛАУДʼ,40231242,юридична особа
Самопоміч,"Київ, вул. Єреванська, буд. 1",70,2020-01-16,TR.1170985_5,Банківські послуги,Інші витрати,245759,Центральний офіс,38558365,Україна,"Плата за розрахункове обслуговування по рахунку № 26006924866928.980 з 2020-01-16 по 2020-01-16 згідно Договору № 2019/КД/291-0048 від 2019-06-18 р, без ПДВ",UA443204780000026006924866928,current,0.80,"АБ ""Укргазбанк""",23697280,юридична особа
Самопоміч,"Київ, вул. Єреванська, буд. 1",70,2020-01-16,TR.1170985_4,Банківські послуги,Інші витрати,245758,Центральний офіс,38558365,Україна,"Плата за розрахункове обслуговування по рахунку № 26006924866928.980 з 2020-01-16 по 2020-01-16 згідно Договору № 2019/КД/291-0048 від 2019-06-18 р, без ПДВ",UA443204780000026006924866928,current,0.80,"АБ ""Укргазбанк""",23697280,юридична особа
Самопоміч,"Київ, вул. Єреванська, буд. 1",70,2020-01-16,TR.1170985_3,Банківські послуги,Інші витрати,245757,Центральний офіс,38558365,Україна,"Плата за розрахункове обслуговування по рахунку № 26006924866928.980 з 2020-01-16 по 2020-01-16 згідно Договору № 2019/КД/291-0048 від 2019-06-18 р, без ПДВ",UA443204780000026006924866928,current,0.80,"АБ ""Укргазбанк""",23697280,юридична особа
Самопоміч,"Київ, вул. Єреванська, буд. 1",70,2020-01-16,TR.1170985_2,Банківські послуги,Інші витрати,245756,Центральний офіс,38558365,Україна,"Плата за розрахункове обслуговування по рахунку № 26006924866928.980 з 2020-01-16 по 2020-01-16 згідно Договору № 2019/КД/291-0048 від 2019-06-18 р, без ПДВ",UA443204780000026006924866928,current,0.80,"АБ ""Укргазбанк""",23697280,юридична особа
Самопоміч,"Київ, вул. Єреванська, буд. 1",70,2020-01-16,TR.1170985_1,Банківські послуги,Інші витрати,245755,Центральний офіс,38558365,Україна,"Плата за розрахункове обслуговування по рахунку № 26006924866928.980 з 2020-01-16 по 2020-01-16 згідно Договору № 2019/КД/291-0048 від 2019-06-18 р, без ПДВ",UA443204780000026006924866928,current,0.80,"АБ ""Укргазбанк""",23697280,юридична особа
Самопоміч,"Київ, вул. Єреванська, буд. 1",70,2020-01-16,TR.1170985,Банківські послуги,Інші витрати,245754,Центральний офіс,38558365,Україна,"Плата за розрахункове обслуговування по рахунку № 26006924866928.980 з 2020-01-16 по 2020-01-16 згідно Договору № 2019/КД/291-0048 від 2019-06-18 р, без ПДВ",UA443204780000026006924866928,current,0.80,"АБ ""Укргазбанк""",23697280,юридична особа
Самопоміч,"Львівська обл., Львів, вул. Іларіона Свєнціцького, буд. 1",76,2020-01-16,3320,Послуги зв’язку,Послуги зв’язку,245753,Центральний офіс,38558365,Україна,"Оплата за телекомунікаційні послуги за грудень 2019 р по дог. №168754, згідно акту наданих послуг від 2019-12-31 р. в т.ч. ПДВ 105.50 грн.",UA443204780000026006924866928,current,633.00,"ДП ""НТЦ ""Українська академічна і дослідницька мережа"" Інституту фізики конденсованих систем НАН України""",30275262,юридична особа
Самопоміч,"Полтавська обл., Полтава, вул. Європейська, буд. 57",80,2020-01-16,3318,"Транспортні послуги (квитки, пасажирські перевезення і т.д.)","Транспортні послуги (квитки, пасажирські перевезення і т.д.)",245752,Центральний офіс,38558365,Україна,"Оплата за організацію перевезення відправлень, згідно акту наданих послуг № НП-003160619 від 2019-12-31 р. в т.ч. ПДВ 271.99 грн.",UA443204780000026006924866928,current,1631.90,"ТОВ ""Нова пошта""",31316718,юридична особа
Самопоміч,"Київ, вул. Дегтярівська, буд. 53",76,2020-01-16,3319,Послуги зв’язку,Послуги зв’язку,245751,Центральний офіс,38558365,Україна,"Оплата за надані послуги мобільного звʼязку за грудень 2019р., згідно рахунку № 40-26311964 від 2019-12-31 р. в т.ч. ПДВ 276,42 грн.",UA443204780000026006924866928,current,1762.20,"ПрАТ ""Київстар""",21673832,юридична особа
Самопоміч,"Київ, вул. Єреванська, буд. 1",70,2020-01-16,3313,Банківські послуги,Інші витрати,245750,Центральний офіс,38558365,Україна,Банківська комісія за виплату авансу працівників за січень 2020 р.,UA443204780000026006924866928,current,75.05,"АБ ""Укргазбанк""",23697280,юридична особа
Самопоміч,"Львівська обл., Львів, вул. Конотопська, буд. 6",63,2020-01-16,3316,Податок на доходи,Податкові платежі,245749,Центральний офіс,38558365,Україна,*;101;38558365; сплата ПДФО із авансу працівників за січень 2020 р.;;;11010100,UA443204780000026006924866928,current,3356.14,УДКСУ у Франківському районі м. Львова,37965138,юридична особа
Самопоміч,"Львівська обл., Львів, вул. Стрийська, буд. 35",62,2020-01-16,3317,Сплата ЄСВ,Податкові платежі,245748,Центральний офіс,38558365,Україна,*;101;38558365; сплата єдиного соціального внеску 22% із авансу працівників за січень 2020р .,UA443204780000026006924866928,current,4101.95,ГОЛОВНЕ УПРАВЛІННЯ ДФС У ЛЬВІВСЬКІЙ ОБЛАСТІ,43143039,юридична особа
Самопоміч,"Львівська обл., Львів, вул. Конотопська, буд. 6",61,2020-01-16,3315,Військовий збір,Податкові платежі,245747,Центральний офіс,38558365,Україна,*;101;38558365; сплата військового збору із авансу працівників за січень 2020 р.;;; 11011000,UA443204780000026006924866928,current,279.68,УДКСУ у Франківському районі м. Львова,37965138,юридична особа
Самопоміч,"Львівська обл., Львів",84,2020-01-16,3314,"Заробітна плата, премії","Заробітна плата, лікарняні, вагітності, відрядження, компенсації",245738,Центральний офіс,38558365,Україна,Зарплата,UA443204780000026006924866928,current,5002.51,Дунаєвська Ольга Євстахіївна,,фізична особа
Самопоміч,"Львівська обл., Львів",84,2020-01-16,3314,"Заробітна плата, премії","Заробітна плата, лікарняні, вагітності, відрядження, компенсації",245737,Центральний офіс,38558365,Україна,Зарплата,UA443204780000026006924866928,current,8099.83,Кокорузь Марія Михайлівна,,фізична особа
Самопоміч,"Львівська обл., Львів",84,2020-01-16,3314,"Заробітна плата, премії","Заробітна плата, лікарняні, вагітності, відрядження, компенсації",245736,Центральний офіс,38558365,Україна,Зарплата,UA443204780000026006924866928,current,1907.08,Васів Наталія Юріївна,,фізична особа
Самопоміч,"Київ, вул. Михайла Грушевського, буд. 1Д",70,2020-01-03,AN9cs04t0p,Банківські послуги,Інші витрати,245915,Мелітопольська міська організація,39964031,Запорізька область,"Комісія за обслуговування недіючого рахунку №26008055723683 за грудень 2019 р., згідно тарифів банку, без ПДВ",26008055723683,current,100.00,"ПАТ КБ ""Приватбанк""",14360570,юридична особа
Самопоміч,"Київ, вул. Єреванська, буд. 1",70,2020-01-03,TR.2504263.2680.8669,Банківські послуги,Інші витрати,245914,Київська обласна організація,39922721,Київська область,"Списання комісії за розрахунково-касове обслуговування неактивних рахунків по рахунку № 26007924419329.980 за Грудень 2019р. зг. договору № 2016/РКО/060-077 від 2016-10-13р, без ПДВ",UA393204780000026007924419329,current,54.39,"АБ ""Укргазбанк""",23697280,юридична особа
Самопоміч,"Київ, вул. Михайла Грушевського, буд. 1",70,2020-01-03,AS9CSKZB5P,Банківські послуги,Інші витрати,245913,Київська міська організація,39842314,Київ,"Комiсiя за обслуговування рахунку за грудень 2019 р. згiдно договору банкiвського рахунку вiд 2017-10-19, без ПДВ.",UA763802690000026005056218695,current,100.00,"ПАТ КБ ""Приватбанк""",14360570,юридична особа
Самопоміч,"Дніпропетровська обл., Дніпро́, вул. Челюскіна, буд. 12",70,2020-01-03,TR.2506862.87146.11845,Банківські послуги,Інші витрати,245912,Дніпропетровська обласна організація,39957684,Дніпропетровська область,"Плата за надання інших довідок, повідомлень за запитом власника рахунку згідно договору № 2016/РКО/175-189 від 2016-10-17 р. (без ПДВ)",UA693204780000026001924419381,current,100.00,"АБ ""Укргазбанк""",23697280,юридична особа
Самопоміч,"Дніпропетровська обл., Дніпро́, вул. Челюскіна, буд. 12",70,2020-01-03,TR.2506862.87129.11845,Банківські послуги,Інші витрати,245911,Дніпропетровська обласна організація,39957684,Дніпропетровська область,"Плата за надання інших довідок, повідомлень за запитом власника рахунку згідно договору № 2016/РКО/175-189 від 2016-10-17 р. (без ПДВ)",UA693204780000026001924419381,current,100.00,"АБ ""Укргазбанк""",23697280,юридична особа
Самопоміч,"Дніпропетровська обл., Дніпро́, вул. Челюскіна, буд. 12",70,2020-01-03,11845 8,Банківські послуги,Інші витрати,245910,Дніпровська міська організація,39959985,Дніпропетровська область,"Плата за надання інших довідок, повідомлень за запитом власника рахунку згідно",UA273204780000026003924419196,current,100.00,"АБ ""Укргазбанк""",23697280,юридична особа
Самопоміч,"Дніпропетровська обл., Дніпро́, вул. Челюскіна, буд. 12",70,2020-01-03,TR.2498580.87483.11845,Банківські послуги,Інші витрати,245909,Дніпровська міська організація,39959985,Дніпропетровська область,"Плата за надання інших довідок, повідомлень за запитом власника рахунку згідно договору № 2016/РКО/175-183 від 2016-10-10 р. (без ПДВ)",UA273204780000026003924419196,current,100.00,"АБ ""Укргазбанк""",23697280,юридична особа
Самопоміч,"Київ, вул. Михайла Грушевського",70,2020-01-03,AN9СS00ZDP,Банківські послуги,Інші витрати,245906,Вінницька міська організація,39916686,Вінницька область,"Комісія за обслуговування недіючого рахунку № 26001055325259 за грудень 2019 р., згідно тарифів банку, без ПДВ",UA363026890000026001055325259,current,100.00,"ПАТ КБ ""Приватбанк""",14360570,юридична особа
Самопоміч,"Вінницька обл., Вінниця, вул. Соборна, буд. 71",70,2020-01-03,2744108003,Банківські послуги,Інші витрати,245898,Барська районна організація,39919455,Вінницька область,Списання щомісячної плати за обслуговування ТП Моя громада за за грудень 2019 р.,UA453020760000026000171311565,current,99.00,"Вінницька обласна філія АТ ""Ощадбанк""",09302607,юридична особа
Самопоміч,"Вінницька обл., Вінниця, вул. Соборна, буд. 71",70,2020-01-03,2736369903,Банківські послуги,Інші витрати,245897,Барська районна організація,39919455,Вінницька область,Коміс.за розрах.обсл. рахунку 26000171311565 з 01-12-2019 по 31-12-2019. Без НДС,UA453020760000026000171311565,current,100.00,"Вінницька обласна філія АТ ""Ощадбанк""",09302607,юридична особа
Самопоміч,"Київ, вул. Михайла Грушевського, буд. 1Д",70,2020-01-03,AS9csif0jp,Банківські послуги,Інші витрати,245868,Центральний офіс,38558365,Україна,"Комісія за обслуговування рахунку за грудень 2019 р. згідно договору банківського рахунку від 2018-04-23, без ПДВ.",UA703253210000026001053732835,current,100.00,"ПАТ КБ ""Приватбанк""",14360570,юридична особа
